Workbook

Sheet Supplementary data S1
A1: Compound identifier | B1: Trivial name | D1: Final ABS IC50 (nM) | E1: Final iGc IC50 (nM) | F1: Final LGc IC50 (nM) | G1: Final mGc IC50 (nM) | I1: FC iGC-ABS | J1: FC LGc-ABS | K1: FC mGc-ABS | M1: SMILE | O1: Ref for ABS activity | P1: Ref for iGc activity | Q1: Ref for LGc activity | R1: Ref for mGc activity
A3: MMV009952 | B3: (-)-Halofuginone | D3: 1.02 | E3: 8.40 | G3: 7.64 | I3: =E3/D3 -> 8.24 | K3: =G3/D3 -> 7.49 | M3: =VLOOKUP(A3,[1]Sheet1!$A:$O,15,FALSE) -> O[C@@H]1CCCN[C@H]1CC(=O)CN2C=Nc3cc(Br)c(Cl)cc3C2=O | O3: This study | P3: This study | Q3: This study | R3: This study
A4: NCGC00093889 | B4: (-)-Physostigmine | D4: 3981.07 | F4: 5000.00 | J4: =F4/D4 -> 1.26 | M4: CNC(=O)OC1=CC2=C(C=C1)N(C)[C@H]3N(C)CC[C@@]23C | O4: Yuan 2009 | Q4: Sun 2014 | U4: Reference list
A5: NCGC00016954 | B5: (-)-QUINPIROLE | D5: 5000.00 | F5: 2511.89 | J5: 0.50 | M5: Cl.CCCN1CCC[C@@H]2Cc3nncc3C[C@@H]12 | O5: Eastman | Q5: Sun 2014 | U5: Sun, W.; Huang, X.; Li, H.; Tawa, G.; Fisher, E.; Tanaka, T. Q.; Shinn, P.; Huang, W.; Williamson, K. C.; Zheng, W., Novel lead structures with both Plasmodium falciparum gametocytocidal and asexual blood stage activity identified from high throughput compound screening. Malaria journal 2017, 16 (1), 1-11.
A6: NCGC00163242 | B6: (+)-TUBOCURARINE | D6: 5000.00 | F6: 501.19 | J6: 0.10 | M6: [Cl-].Cl.Oc7ccc1cc7Oc5cc6[C@H](Cc4ccc(Oc2c3[C@@H](C1)[N+](C)(C)CCc3cc(OC)c2O)cc4)N(C)CCc6cc5OC | O6: Eastman | Q6: Sun 2014 | U6: Reader, J.; van der Watt, M. E.; Taylor, D.; Le Manach, C.; Mittal, N.; Ottilie, S.; Theron, A.; Moyo, P.; Erlank, E.; Nardini, L., Multistage and transmission-blocking targeted antimalarials discovered from the open-source MMV Pandemic Response Box. Nature Communications 2021, 12 (1), 1-15.
A7: NCGC00016486 | B7: (d,l)-Tetrahydroberberine | D7: 2511.89 | F7: 5000.00 | J7: 1.99 | M7: COc1c(OC)ccc2CC3N(Cc12)CCc4cc5OCOc5cc34 | O7: Eastman | Q7: Sun 2014 | U7: Patel, P. R.; Sun, W.; Kim, M.; Huang, X.; Sanderson, P. E.; Tanaka, T. Q.; McKew, J. C.; Simeonov, A.; Williamson, K. C.; Zheng, W., In vitro evaluation of imidazo [4, 5-c] quinolin-2-ones as gametocytocidal antimalarial agents. Bioorganic & Medicinal Chemistry Letters 2016, 26 (12), 2907-2911.
A8: NCGC00016798 | B8: (S)-TIMOLOL | D8: 5000.00 | F8: 3162.28 | J8: 0.63 | M8: O[C@H](COc1nsnc1N2CCOCC2)CNC(C)(C)C | O8: Eastman | Q8: Sun 2014 | U8: Sun, W.; Tanaka, T. Q.; Magle, C. T.; Huang, W.; Southall, N.; Huang, R.; Dehdashti, S. J.; McKew, J. C.; Williamson, K. C.; Zheng, W., Chemical signatures and new drug targets for gametocytocidal drug development. Scientific reports 2014, 4 (1), 1-11.
A9: MMV1006203 | B9: 1,1-dioxide 1-Thioflavone | D9: 5000.00 | F9: 266.70 | J9: 0.05 | M9: O=C1C=C(c2ccccc2)S(=O)(=O)c3ccccc13 | O9: Reader 2021 | Q9: Reader 2021 | U9: Duffy, S.; Sykes, M. L.; Jones, A. J.; Shelper, T. B.; Simpson, M.; Lang, R.; Poulsen, S.-A.; Sleebs, B. E.; Avery, V. M., Screening the Medicines for Malaria Venture Pathogen Box across multiple pathogens reclassifies starting points for open-source drug discovery. Antimicrobial agents and chemotherapy 2017, 61 (9), 10.1128/aac. 00379-17.
A10: 10-Arylamine | B10: 10-Arylamine | D10: 1.30 | E10: 38.20 | F10: 16.42 | G10: 800.00 | I10: =E10/D10 -> 29.38 | J10: 12.63 | K10: =G10/D10 -> 615.38 | M10: Fc1ccc(cc1)NC1OC2OC3(C)CCC4C(C)CCC(C1C)C24OO3 | O10: Coertzen 2018 | P10: Coertzen 2018 | Q10: Coertzen 2018 | R10: Coertzen 2018 | U10: Olivier, T.; Loots, L.; Kok, M.; De Villiers, M.; Reader, J.; Birkholtz, L. M.; Arnott, G. E.; De Villiers, K. A., Adsorption to the Surface of Hemozoin Crystals: Structure‐Based Design and Synthesis of Amino‐Phenoxazine β‐Hematin Inhibitors. ChemMedChem 2022, 17 (10), e202200139.
A11: 10-Phenylurea | B11: 10-Phenylurea | D11: 1.30 | E11: 83.00 | F11: 1.70 | G11: 100.00 | I11: =E11/D11 -> 63.85 | J11: 1.31 | K11: =G11/D11 -> 76.92 | M11: O=C(Nc1ccccc1)N1CCN(CC1)C1OC2OC3(C)CCC4C(C)CCC(C1C)C24OO3 | O11: Coertzen 2018 | P11: Coertzen 2018 | Q11: Coertzen 2018 | R11: Coertzen 2018 | U11: Tanaka, T. Q.; Guiguemde, W. A.; Barnett, D. S.; Maron, M. I.; Min, J.; Connelly, M. C.; Suryadevara, P. K.; Guy, R. K.; Williamson, K. C., Potent Plasmodium falciparum gametocytocidal activity of diaminonaphthoquinones, lead antimalarial chemotypes identified in an antimalarial compound screen. Antimicrobial agents and chemotherapy 2015, 59 (3), 1389-1397.
A12: 10-Piperazine | B12: 10-Piperazine | D12: 3.10 | E12: 54.91 | F12: 25.70 | G12: 1000.00 | I12: =E12/D12 -> 17.71 | J12: 8.29 | K12: =G12/D12 -> 322.58 | M12: CC12OC3OC(C(C)C4CCC(C)C(CC1)C43OO2)N1CCNCC1 | O12: Coertzen 2018 | P12: Coertzen 2018 | Q12: Coertzen 2018 | R12: Coertzen 2018 | U12: Coetzee, N.; von Grüning, H.; Opperman, D.; van der Watt, M.; Reader, J.; Birkholtz, L.-M., Epigenetic inhibitors target multiple stages of Plasmodium falciparum parasites. Scientific reports 2020, 10 (1), 1-11.
A13: 10-Sulfamide | B13: 10-Sulfamide | D13: 3.00 | E13: 15.00 | F13: 419.40 | I13: =E13/D13 -> 5.00 | J13: 139.80 | M13: NS(=O)(=O)NC1OC2OC3(C)CCC4C(C)CCC(C1C)C24OO3 | O13: Coertzen 2018 | P13: Coertzen 2018 | Q13: Coertzen 2018 | U13: Lucantoni, L.; Duffy, S.; Adjalley, S. H.; Fidock, D. A.; Avery, V. M., Identification of MMV malaria box inhibitors of Plasmodium falciparum early-stage gametocytes using a luciferase-based high-throughput assay. Antimicrobial agents and chemotherapy 2013, 57 (12), 6050-6062.
A14: NCGC00163424 | B14: 17-Allylamino-geldanamycin | D14: 1584.89 | F14: 1584.89 | J14: 1.00 | M14: NC(=O)O[C@H]1C(C)=C[C@H](C)[C@@H](O)[C@@H](OC)C[C@H](C)CC2=C(NCC=C)C(=O)C=C(NC(=O)C(C)=CC=C[C@@H]1OC)C2=O | O14: Eastman | Q14: Sun 2014 | U14: Vallone, A.; D'Alessandro, S.; Brogi, S.; Brindisi, M.; Chemi, G.; Alfano, G.; Lamponi, S.; Lee, S. G.; Jez, J. M.; Koolen, K. J., Antimalarial agents against both sexual and asexual parasites stages: structure-activity relationships and biological studies of the Malaria Box compound 1-[5-(4-bromo-2-chlorophenyl) furan-2-yl]-N-[(piperidin-4-yl) methyl] methanamine (MMV019918) and analogues. European Journal of Medicinal Chemistry 2018, 150, 698-718.
A15: MMV180402 | B15: 2-Adamantanamine | D15: 5000.00 | F15: 434.80 | J15: 0.09 | M15: NC2C1CC3CC(C1)CC2C3 | O15: Reader 2021 | Q15: Reader 2021 | U15: Li, H.; Sun, W.; Huang, X.; Lu, X.; Patel, P. R.; Kim, M.; Orr, M. J.; Fisher, R. M.; Tanaka, T. Q.; McKew, J. C., Efficient Synthesis of 1,9-Substituted Benzo [h][1,6] naphthyridin-2(1H)-ones and Evaluation of their Plasmodium falciparum Gametocytocidal Activities. ACS Combinatorial Science 2017, 19 (12), 748-754.
A16: NCGC00096053 | B16: 2-AMINOGUANIDINE HEMISULFATE | D16: 5000.00 | F16: 794.33 | J16: 0.16 | M16: NC(=N)NN.O=S(=O)(O)O.N=C(N)NN | O16: Eastman | Q16: Sun 2014 | U16: Duffy, S.; Avery, V. M., Identification of inhibitors of Plasmodium falciparum gametocyte development. Malaria journal 2013, 12, 408.
A17: NCGC00018167 | B17: 2-Chloro-2?-deoxyadenosineÃ¸ | D17: 5000.00 | F17: 1000.00 | J17: 0.20 | M17: Nc3nc(Cl)nc2c3ncn2[C@H]1C[C@H](O)[C@@H](CO)O1 | O17: Eastman | Q17: Sun 2014 | U17: Delves, M. J.; Miguel-Blanco, C.; Matthews, H.; Molina, I.; Ruecker, A.; Yahiya, S.; Straschil, U.; Abraham, M.; León, M. L.; Fischer, O. J., A high throughput screen for next-generation leads targeting malaria parasite transmission. Nature Communications 2018, 9 (1), 3805.
A18: NCGC00091456 | B18: 2-Methylimidazole | D18: 5000.00 | F18: 3162.28 | J18: 0.63 | M18: Cc1nccn1 | O18: Eastman | Q18: Sun 2014 | U18: Almela, M. J.; Lozano, S.; Lelièvre, J.; Colmenarejo, G.; Coterón, J. M.; Rodrigues, J.; Gonzalez, C.; Herreros, E., A new set of chemical starting points with Plasmodium falciparum transmission-blocking potential for antimalarial drug discovery. PloS one 2015, 10 (8), e0135139.
A19: NCGC00013217 | B19: 2,3-DIMERCAPTOBUTANEDIOIC ACID, ARSENIC(3+) | D19: 3981.07 | F19: 5000.00 | J19: 1.26 | M19: O=C(O)[C@@H](S)[C@H](S)C(O)=O | O19: Eastman | Q19: Sun 2014 | U19: Hansen, F. K.; Sumanadasa, S. D.; Stenzel, K.; Duffy, S.; Meister, S.; Marek, L.; Schmetter, R.; Kuna, K.; Hamacher, A.; Mordmüller, B., Discovery of HDAC inhibitors with potent activity against multiple malaria parasite life cycle stages. European Journal of Medicinal Chemistry 2014, 82, 204-213.
A20: YA2 | B20: 2,7-dibromocryptolepine | D20: 30.00 | F20: 2000.00 | J20: 66.67 | M20: Brc1cc2c([n-]c3cc4cc(Br)ccc4[n+](C)c32)cc1 | O20: Abacha 2022 | Q20: Abacha 2022 | U20: van der Watt, M. E.; Reader, J.; Churchyard, A.; Nondaba, S. H.; Lauterbach, S. B.; Niemand, J.; Abayomi, S.; van Biljon, R. A.; Connacher, J. I.; van Wyk, R. D., Potent Plasmodium falciparum gametocytocidal compounds identified by exploring the kinase inhibitor chemical space for dual active antimalarials. Journal of Antimicrobial Chemotherapy 2018, 73 (5), 1279-1290.
A21: MMV397264 | B21: 21A092 | D21: 10.58 | E21: 62.10 | G21: 213.30 | I21: =E21/D21 -> 5.87 | K21: =G21/D21 -> 20.16 | M21: =VLOOKUP(A21,[1]Sheet1!$A:$O,15,FALSE) -> CC(C)c1nc2ccccc2n1CC(=O)Nc3c(c(C)nn3C)c4ccc(Cl)cc4F | O21: This study | P21: This study | Q21: This study | R21: This study | U21: Plouffe, D. M.; Wree, M.; Du, A. Y.; Meister, S.; Li, F.; Patra, K.; Lubar, A.; Okitsu, S. L.; Flannery, E. L.; Kato, N., High-throughput assay and discovery of small molecules that interrupt malaria transmission. Cell Host and Microbe 2016, 19 (1), 114-126.
A22: 3-Deazaneplanocin A | B22: 3-Deazaneplanocin A | D22: 11.70 | E22: 1000.00 | F22: 1000.00 | I22: =E22/D22 -> 85.47 | J22: =F22/D22 -> 85.47 | M22: C1=CN=C(C2=C1N(C=N2)[C@@H]3C=C([C@H]([C@H]3O)O)CO)N | O22: Coetzee 2020 | P22: vanheer 2020 | Q22: vanheer 2020 | U22: Reader, J.; Opperman, D. F.; van der Watt, M. E.; Theron, A.; Leshabane, M.; da Rocha, S.; Turner, J.; Garrabrant, K.; Piña, I.; Mills, C., New Transmission‐Selective Antimalarial Agents through Hit‐to‐Lead Optimization of 2‐([1,1′‐Biphenyl]‐4‐carboxamido) benzoic Acid Derivatives. ChemBioChem 2022, 23 (21), e202200427.
A23: 3-Deazaneplanocin A (hydrochloride) | B23: 3-Deazaneplanocin A (hydrochloride) | D23: 1000.00 | E23: 1000.00 | F23: 1000.00 | I23: =E23/D23 -> 1.00 | J23: =F23/D23 -> 1.00 | M23: C1=CN=C(C2=C1N(C=N2)[C@@H]3C=C([C@H]([C@H]3O)O)CO)N.Cl | O23: vanheer 2020 | P23: vanheer 2020 | Q23: vanheer 2020 | U23: Paonessa, G.; Siciliano, G.; Graziani, R.; Lalli, C.; Cecchetti, O.; Alli, C.; La Valle, R.; Petrocchi, A.; Sferrazza, A.; Bisbocci, M., Gametocyte-specific and all-blood-stage transmission-blocking chemotypes discovered from high throughput screening on Plasmodium falciparum gametocytes. Communications Biology 2022, 5 (1), 1-10.
A24: NCGC00016011 | B24: 4-HYDROXYPHENETHYLAMINE | D24: 5000.00 | F24: 3981.07 | J24: =F24/D24 -> 0.80 | M24: NCCC1=CC=C(O)C=C1 | O24: Eastman | Q24: Sun 2014 | U24: Vanheer, L. N.; Zhang, H.; Lin, G.; Kafsack, B. F., Activity of epigenetic inhibitors against Plasmodium falciparum asexual and sexual blood stages. Antimicrobial agents and chemotherapy 2020, 64 (7), 10.1128/aac. 02523-19.
A25: 4-iodo-SAHA | B25: 4-iodo-SAHA | D25: 202.60 | E25: 277.40 | F25: 1000.00 | I25: =E25/D25 -> 1.37 | J25: =F25/D25 -> 4.94 | M25: IC1=CC=C(NC(CCCCCCC(NO)=O)=O)C=C1 | O25: vanheer 2020 | P25: vanheer 2020 | Q25: vanheer 2020 | U25: Matthews, K. A.; Senagbe, K. M.; Nötzel, C.; Gonzales, C. A.; Tong, X.; Rijo-Ferreira, F.; Bhanu, N. V.; Miguel-Blanco, C.; Lafuente-Monasterio, M. J.; Garcia, B. A., Disruption of the Plasmodium falciparum life cycle through transcriptional reprogramming by inhibitors of Jumonji demethylases. ACS Infectious Diseases 2020, 6 (5), 1058-1075.
A26: MMV1576861 | B26: 49c | D26: 0.60 | E26: 1031.00 | G26: 5000.00 | I26: =E26/D26 -> 1718.33 | K26: =G26/D26 -> 8333.33 | M26: =VLOOKUP(A26,[1]Sheet1!$A:$O,15,FALSE) -> C[C@@H](NC[C@@H](O)[C@H](Cc1ccccc1)NC(=O)c2ccc(cc2)C(=O)N3CCN(C)CC3)c4ccccc4 | O26: This study | P26: This study | Q26: This study | R26: This study | U26: Abraham, M.; Gagaring, K.; Martino, M. L.; Vanaerschot, M.; Plouffe, D. M.; Calla, J.; Godinez-Macias, K. P.; Du, A. Y.; Wree, M.; Antonova-Koch, Y., Probing the Open Global Health Chemical Diversity Library for multistage-active starting points for next-generation antimalarials. ACS Infectious Diseases 2020, 6 (4), 613-628.
A27: YA6 | B27: 7,9-diiodocryptolepine | D27: 660.00 | F27: 2200.00 | J27: =F27/D27 -> 3.33 | M27: Ic1cc2c([n-]c3cc4ccccc4[n+](C)c32)c(I)c1 | O27: Abacha 2022 | Q27: Abacha 2022 | U27: Miguel-Blanco, C.; Molina, I.; Bardera, A. I.; Díaz, B.; de Las Heras, L.; Lozano, S.; González, C.; Rodrigues, J.; Delves, M. J.; Ruecker, A., Hundreds of dual-stage antimalarial molecules discovered by a functional gametocyte screen. Nature Communications 2017, 8 (1), 1-10.
A28: NCGC00093821 | B28: 8-(3-Chlorostyryl)caffeine | D28: 5000.00 | F28: 3548.13 | J28: 0.71 | M28: CN1C(=O)N(C)C2=C([N](C)C(=N2)\C=C\C3=CC(=CC=C3)Cl)C1=O | O28: Yuan 2009 | Q28: Sun 2014 | U28: Ng, J. P.; Han, Y.; Yang, L. J.; Birkholtz, L.-M.; Coertzen, D.; Wong, H. N.; Haynes, R. K.; Coghi, P.; Wong, V. K. W., Antimalarial and antitumour activities of the steroidal quinone-methide celastrol and its combinations with artemiside, artemisone and methylene blue. Frontiers in Pharmacology 2022, 13, 988748.
A29: Abexinostat (PCI-24781) | B29: Abexinostat (PCI-24781) | D29: 54.40 | E29: 112.20 | F29: 1000.00 | I29: =E29/D29 -> 2.06 | J29: 18.38 | M29: O=C(NO)C1=CC=C(OCCNC(C2=C(CN(C)C)C3=C(C=CC=C3)O2)=O)C=C1 | O29: vanheer 2020 | P29: vanheer 2020 | Q29: vanheer 2020 | U29: Singh, K.; Okombo, J.; Brunschwig, C.; Ndubi, F.; Barnard, L.; Wilkinson, C.; Njogu, P. M.; Njoroge, M.; Laing, L.; Machado, M., Antimalarial pyrido [1,2-a] benzimidazoles: Lead optimization, parasite life cycle stage profile, mechanistic evaluation, killing kinetics, and in vivo oral efficacy in a mouse model. Journal of medicinal chemistry 2017, 60 (4), 1432-1448.
A30: NCGC00015014 | B30: Acetohexamide | D30: 5000.00 | F30: 707.95 | J30: 0.14 | M30: CC(=O)C1=CC=C(C=C1)[S+]([O-])(=O)NC(=O)NC2CCCCC2 | O30: Eastman | Q30: Sun 2014 | U30: Bowman, J. D.; Merino, E. F.; Brooks, C. F.; Striepen, B.; Carlier, P. R.; Cassera, M. B., Antiapicoplast and gametocytocidal screening to identify the mechanisms of action of compounds within the malaria box. Antimicrobial agents and chemotherapy 2014, 58 (2), 811-819.
A31: NCGC00015067 | B31: Acetylsalicylic acid | D31: 5000.00 | F31: 3162.28 | J31: 0.63 | M31: O=C(C)Oc1ccccc1C(=O)O | O31: Eastman | Q31: Sun 2014 | U31: Schalkwijk, J.; Allman, E. L.; Jansen, P. A.; De Vries, L. E.; Verhoef, J. M.; Jackowski, S.; Botman, P. N.; Beuckens-Schortinghuis, C. A.; Koolen, K. M.; Bolscher, J. M., Antimalarial pantothenamide metabolites target acetyl–coenzyme A biosynthesis in Plasmodium falciparum. Science Translational Medicine 2019, 11 (510), eaas9917.
A32: NCGC00094813 | B32: ACRIFLAVINIUM HYDROCHLORID | D32: 199.53 | F32: 5000.00 | J32: 25.06 | M32: [Cl-].C[n+]1c3cc(N)ccc3cc2ccc(N)cc12.Nc1cc2nc3cc(N)ccc3cc2cc1 | O32: Eastman | Q32: Sun 2014 | U32: D'alessandro, S.; Camarda, G.; Corbett, Y.; Siciliano, G.; Parapini, S.; Cevenini, L.; Michelini, E.; Roda, A.; Leroy, D.; Taramelli, D., A chemical susceptibility profile of the Plasmodium falciparum transmission stages by complementary cell-based gametocyte assays. Journal of Antimicrobial Chemotherapy 2016, 71 (5), 1148-1158.
A33: NCGC00160650 | B33: ACRINOL | D33: 2511.89 | F33: 5000.00 | J33: 1.99 | M33: O.O=C(O)C(C)O.CCOc1ccc2nc3cc(N)ccc3c(N)c2c1 | O33: Eastman | Q33: Sun 2014 | U33: D'Alessandro, S.; Corbett, Y.; Ilboudo, D. P.; Misiano, P.; Dahiya, N.; Abay, S. M.; Habluetzel, A.; Grande, R.; Gismondo, M. R.; Dechering, K. J., Salinomycin and other ionophores as a new class of antimalarial drugs with transmission-blocking activity. Antimicrobial agents and chemotherapy 2015, 59 (9), 5135-5144.
A34: ACT-451840 | B34: ACT-451840 | D34: 0.60 | E34: 1.80 | I34: =E34/D34 -> 3.00 | M34: CC(C)(C)c1ccc(cc1)/C=C/C(=O)N(Cc1ccc(cc1)N1CCN(CC1)C(C)=O)[C@@H](Cc1ccccc1)C(=O)N1CCN(Cc2ccc(C#N)cc2)CC1 | O34: Ng 2016 | P34: Ng 2016 | U34: Le Manach, C.; Paquet, T.; Brunschwig, C.; Njoroge, M.; Han, Z.; Gonzàlez Cabrera, D.; Bashyam, S.; Dhinakaran, R.; Taylor, D.; Reader, J., A novel pyrazolopyridine with in vivo activity in Plasmodium berghei-and Plasmodium falciparum-infected mouse models from structure–activity relationship studies around the core of recently identified antimalarial imidazopyridazines. Journal of medicinal chemistry 2015, 58 (21), 8713-8722.
A35: MMV1542945 | B35: ACT-451840 | D35: 8.34 | E35: 9.90 | G35: 11.10 | I35: =E35/D35 -> 1.19 | K35: =G35/D35 -> 1.33 | M35: CC(C)(C)c1ccc(cc1)/C=C/C(=O)N(Cc1ccc(cc1)N1CCN(CC1)C(C)=O)[C@@H](Cc1ccccc1)C(=O)N1CCN(Cc2ccc(C#N)cc2)CC1 | O35: This study | P35: This study | Q35: This study | R35: This study | U35: Lelièvre, J.; Almela, M. J.; Lozano, S.; Miguel, C.; Franco, V.; Leroy, D.; Herreros, E., Activity of clinically relevant antimalarial drugs on Plasmodium falciparum mature gametocytes in an ATP bioluminescence “transmission blocking” assay. Malaria journal 2012, 11 (1), P7.
A36: NCGC00161622 | B36: Actinomycin | D36: 5.01 | F36: 316.23 | J36: =F36/D36 -> 63.10 | M36: CC(C)[C@H]6NC(=O)[C@@H](NC(=O)c1ccc(C)c2OC3=C(C)C(=O)C(N)=C(C3=Nc12)C(=O)N[C@@H]5C(=O)N[C@@H](C(=O)N4CCC[C@H]4C(=O)N(C)CC(=O)N(C)[C@@H](C(C)C)C(=O)O[C@@H]5C)C(C)C)[C@@H](C)OC(=O)[C@H](C(C)C)N(C)C(=O)CN(C)C(=O)[C@@H]7CCCN7C6=O | O36: Eastman | Q36: Sun 2014 | U36: de Vries, L. E.; Jansen, P. A.; Barcelo, C.; Munro, J.; Verhoef, J. M.; Pasaje, C. F. A.; Rubiano, K.; Striepen, J.; Abla, N.; Berning, L., Preclinical characterization and target validation of the antimalarial pantothenamide MMV693183. Nature Communications 2022, 13 (1), 1-16.
A37: NCGC00181311 | B37: ADEMETIONINE | D37: 5000.00 | F37: 1000.00 | J37: 0.20 | M37: [Cl-].C[S+](CC[C@H](N)C(O)=O)C[C@H]1O[C@H]([C@H](O)[C@@H]1O)N1C=NC2=C1N=CN=C2N | O37: Eastman | Q37: Sun 2014 | U37: Wong, H. N.; Padin-Irizarry, V.; van der Watt, M. E.; Reader, J.; Liebenberg, W.; Wiesner, L.; Smith, P.; Eribez, K.; Winzeler, E. A.; Kyle, D. E., Optimal 10-aminoartemisinins with potent transmission-blocking capabilities for new artemisinin combination therapies–activities against blood stage P. falciparum Including Pf KI3 C580Y mutants and liver stage P. berghei parasites. Frontiers in Chemistry 2020, 7, 901.
A38: NCGC00166288 | B38: ALAZANINI TRICLOFENAS | D38: 199.53 | F38: 1258.93 | J38: 6.31 | M38: [I-].CCN3c4ccccc4SC3=CC=Cc2sc1ccccc1[n+]2CC | O38: Eastman | Q38: Sun 2014 | U38: Baragaña, B.; Hallyburton, I.; Lee, M.; Norcross, N. R.; Grimaldi, R.; Otto, T. D.; Proto, W. R.; Blagborough, A. M.; Meister, S.; Wirjanata, G., A novel multiple-stage antimalarial agent that inhibits protein synthesis. Nature 2015, 522 (7556), 315-320.
A39: NCGC00159495 | B39: ALBUTOINUM | D39: 5000.00 | F39: 3162.28 | J39: 0.63 | M39: S=C1NC(CC(C)C)C(=O)N1CC=C | O39: Eastman | Q39: Sun 2014 | U39: Mayoka, G.; Njoroge, M.; Okombo, J.; Gibhard, L.; Sanches-Vaz, M.; Fontinha, D.; Birkholtz, L.-M.; Reader, J.; van der Watt, M. t.; Coetzer, T. L., Structure–Activity Relationship Studies and Plasmodium Life Cycle Profiling Identifies Pan-Active N-Aryl-3-trifluoromethyl Pyrido [1, 2-a] benzimidazoles Which Are Efficacious in an in Vivo Mouse Model of Malaria. Journal of medicinal chemistry 2018, 62 (2), 1022-1035.
A40: MMV396785 | B40: Alexidine | D40: 23.00 | F40: 146.50 | J40: 6.37 | M40: N=C(NC(=N)NCCCCCCNC(=N)NC(=N)NCC(CCCC)CC)NCC(CCCC)CC | O40: Reader 2021 | Q40: Reader 2021 | U40: Leshabane, M.; Dziwornu, G. A.; Coertzen, D.; Reader, J.; Moyo, P.; van der Watt, M.; Chisanga, K.; Nsanzubuhoro, C.; Ferger, R.; Erlank, E., Benzimidazole derivatives are potent against multiple life cycle stages of Plasmodium falciparum malaria parasites. ACS Infectious Diseases 2021, 7 (7), 1945-1955.
A41: NCGC00094996 | B41: ALEXIDINE HYDROCHLORIDE | D41: 1995.26 | F41: 3548.13 | J41: 1.78 | M41: Cl.Cl.CCCCC(CC)CNC(=N)NC(=N)NCCCCCCNC(=N)NC(=N)NCC(CC)CCCC | O41: Eastman | Q41: Sun 2014 | U41: McNamara, C. W.; Lee, M.; Lim, C. S.; Lim, S. H.; Roland, J.; Nagle, A.; Simon, O.; Yeung, B. K.; Chatterjee, A. K.; McCormack, S. L., Targeting Plasmodium PI (4) K to eliminate malaria. Nature 2013, 504 (7479), 248-253.
A42: NCGC00181014 | B42: ALFACALCIDOL | D42: 5000.00 | F42: 501.19 | J42: 0.10 | M42: C=C1C(\C[C@@H](O)C[C@@H]1O)=C\C=C2\CCC[C@]3(C)[C@H](CC[C@@H]23)[C@H](C)CCCC(C)C | O42: Eastman | Q42: Sun 2014 | U42: Cheuka, P. M.; Centani, L.; Arendse, L. B.; Fienberg, S.; Wambua, L.; Renga, S. S.; Dziwornu, G. A.; Kumar, M.; Lawrence, N.; Taylor, D., New amidated 3, 6-diphenylated imidazopyridazines with potent antiplasmodium activity are dual inhibitors of Plasmodium phosphatidylinositol-4-kinase and cGMP-dependent protein kinase. ACS Infectious Diseases 2020, 7 (1), 34-46.
A43: NCGC00015100 | B43: Altretamine | D43: 5000.00 | F43: 3162.28 | J43: 0.63 | M43: CN(C)C1=NC(=NC(=N1)N(C)C)N(C)C | O43: Eastman | Q43: Sun 2014 | U43: Le Manach, C.; Nchinda, A. T.; Paquet, T.; Gonzàlez Cabrera, D.; Younis, Y.; Han, Z.; Bashyam, S.; Zabiulla, M.; Taylor, D.; Lawrence, N., Identification of a potential antimalarial drug candidate from a series of 2-aminopyrazines by optimization of aqueous solubility and potency across the parasite life cycle. Journal of medicinal chemistry 2016, 59 (21), 9890-9905.
A44: NCGC00017047 | B44: Alverine citrate salt | D44: 5000.00 | F44: 1122.02 | J44: 0.22 | M44: O=C(O)C(O)(CC(=O)O)CC(=O)O.CCN(CCCc1ccccc1)CCCc2ccccc2 | O44: Eastman | Q44: Sun 2014 | U44: Gibhard, L.; Coertzen, D.; Reader, J.; van der Watt, M. E.; Birkholtz, L.-M.; Wong, H. N.; Batty, K. T.; Haynes, R. K.; Wiesner, L., The artemiside-artemisox-artemisone-M1 tetrad: Efficacies against blood stage P. Falciparum parasites, DMPK properties, and the case for artemiside. Pharmaceutics 2021, 13 (12), 2066.
A45: NCGC00015089 | B45: AMILORIDE | D45: 5000.00 | F45: 2818.38 | J45: 0.56 | M45: NC(=N)NC(=O)C1=NC(=C(N)N=C1N)Cl | O45: Eastman | Q45: Sun 2014 | U45: Malebo, H. M.; D’Alessandro, S.; Ebstie, Y. A.; Sorè, H.; Tenoh Guedoung, A. R.; Katani, S. J.; Parapini, S.; Taramelli, D.; Habluetzel, A., In vitro multistage malaria transmission blocking activity of selected malaria box compounds. Drug Design, Development and Therapy 2020, 1593-1607.
A46: NCGC00160524 | B46: AMINOQUINOLUM | D46: 1995.26 | F46: 5000.00 | J46: 2.51 | M46: CCN(CC)CCCC(C)Nc2cc(C=Cc1ccccc1Cl)nc3cc(Cl)ccc23 | O46: Eastman | Q46: Sun 2014 | U46: Paquet, T.; Le Manach, C.; Cabrera, D. G.; Younis, Y.; Henrich, P. P.; Abraham, T. S.; Lee, M. C.; Basak, R.; Ghidelli-Disse, S.; Lafuente-Monasterio, M. J., Antimalarial efficacy of MMV390048, an inhibitor of Plasmodium phosphatidylinositol 4-kinase. Science Translational Medicine 2017, 9 (387), eaad9735.
A47: NCGC00015096 | B47: AMIODARONE | D47: 5000.00 | F47: 3162.28 | J47: 0.63 | M47: CCN(CC)CCOc1c(I)cc(cc1I)C(=O)c2c3ccccc3oc2CCCC | O47: Eastman | Q47: Sun 2014 | U47: Coertzen, D.; Reader, J.; van der Watt, M. E.; Leshabane, M. M.; Langeveld, H.; Cheuka, P. M.; Dziwornu, G. A.; Chibale, K.; Birkholtz, L.-M., Exploring the transmission-blocking activity of antiplasmodial 3,6-diarylated imidazopyridazines. Transactions of the Royal Society of South Africa 2021, 76 (3), 225-233.
A48: NCGC00095000 | B48: AMIPRILOSE | D48: 5000.00 | F48: 562.34 | J48: 0.11 | M48: Cl.CN(C)CCCO[C@@H]1[C@H]2OC(C)(C)O[C@H]2O[C@@H]1C(O)CO | O48: Eastman | Q48: Sun 2014 | U48: Coertzen, D.; Reader, J.; Van Der Watt, M.; Nondaba, S. H.; Gibhard, L.; Wiesner, L.; Smith, P.; D'Alessandro, S.; Taramelli, D.; Wong, H. N., Artemisone and artemiside are potent panreactive antimalarial agents that also synergize redox imbalance in Plasmodium falciparum transmissible gametocyte stages. Antimicrobial agents and chemotherapy 2018, 62 (8), 10.1128/aac. 02214-17.
A49: NCGC00017063 | B49: Amodiaquin dihydrochloride dihydrate | D49: 39.81 | F49: 5000.00 | J49: 125.59 | M49: Cl.Cl.O.O.CCN(CC)Cc1cc(ccc1O)Nc2ccnc3cc(Cl)ccc23 | O49: Eastman | Q49: Sun 2014 | U49: Dziwornu, G. A.; Coertzen, D.; Leshabane, M.; Korkor, C. M.; Cloete, C. K.; Njoroge, M.; Gibhard, L.; Lawrence, N.; Reader, J.; van der Watt, M., Antimalarial benzimidazole derivatives incorporating phenolic mannich base side chains inhibit microtubule and hemozoin formation: structure–activity relationship and in vivo oral efficacy studies. Journal of medicinal chemistry 2021, 64 (8), 5198-5215.
A50: MMV000001 | B50: Amodiaquine | D50: 9.00 | E50: 54.00 | F50: 892.30 | G50: 1782.52 | I50: =E50/D50 -> 6.00 | J50: 99.14 | K50: =G50/D50 -> 198.06 | M50: CCN(CC)Cc1cc(Nc2ccnc3cc(Cl)ccc23)ccc1O | O50: Jennison 2019 | P50: Reader 2022 | Q50: Bolscher 2015 | R50: Plouffe 2016 | U50: Mambwe, D.; Korkor, C. M.; Mabhula, A.; Ngqumba, Z.; Cloete, C.; Kumar, M.; Barros, P. L.; Leshabane, M.; Coertzen, D.; Taylor, D., Novel 3-Trifluoromethyl-1, 2, 4-oxadiazole Analogues of Astemizole with Multi-stage Antiplasmodium Activity and In Vivo Efficacy in a Plasmodium berghei Mouse Malaria Infection Model. Journal of medicinal chemistry 2022, 65 (24), 16695-16715.
A51: MMV000001 | B51: Amodiaquine | D51: 15.00 | E51: 54.30 | G51: 5000.00 | I51: =E51/D51 -> 3.62 | K51: =G51/D51 -> 333.33 | M51: =VLOOKUP(A51,[1]Sheet1!$A:$O,15,FALSE) -> CCN(CC)Cc1cc(Nc2ccnc3cc(Cl)ccc23)ccc1O | O51: This study | P51: This study | Q51: This study | R51: This study | U51: Moyo, P.; Shamburger, W.; van der Watt, M. E.; Reader, J.; De Sousa, A. C. C.; Egan, T. J.; Maharaj, V. J.; Bringmann, G.; Birkholtz, L.-M., Naphthylisoquinoline alkaloids, validated as hit multistage antiplasmodial natural products. International Journal for Parasitology: Drugs and Drug Resistance 2020, 13, 51-58.
A52: NCGC00093556 | B52: Amperozide hydrochloride | D52: 1000.00 | F52: 1995.26 | J52: =F52/D52 -> 2.00 | M52: Cl.Fc1ccc(cc1)C(CCCN2CCN(CC2)C(=O)NCC)c3ccc(F)cc3 | O52: Yuan 2009 | Q52: Sun 2014 | U52: Horatscheck, A.; Andrijevic, A.; Nchinda, A. T.; Le Manach, C.; Paquet, T.; Khonde, L. P.; Dam, J.; Pawar, K.; Taylor, D.; Lawrence, N., Identification of 2,4-disubstituted imidazopyridines as hemozoin formation inhibitors with fast-killing kinetics and in vivo efficacy in the Plasmodium falciparum NSG mouse model. Journal of medicinal chemistry 2020, 63 (21), 13013-13030.
A53: MMV652007 | B53: AN3661 | D53: 46.26 | E53: 1086.00 | G53: 5000.00 | I53: =E53/D53 -> 23.48 | K53: =G53/D53 -> 108.08 | M53: =VLOOKUP(A53,[1]Sheet1!$A:$O,15,FALSE) -> OB1OCc2cccc(CCC(=O)O)c12 | O53: This study | P53: This study | Q53: This study | R53: This study | U53: Peatey, C. L.; Skinner-Adams, T. S.; Dixon, M. W.; McCarthy, J. S.; Gardiner, D. L.; Trenholme, K. R., Effect of antimalarial drugs on Plasmodium falciparum gametocytes. Journal of Infectious Diseases 2009, 200 (10), 1518-1521.
A54: anazolene sodium | B54: anazolene sodium | D54: 5000.00 | G54: 600.00 | K54: =G54/D54 -> 0.12 | M54: C1=CC=C(C=C1)NC2=C3C(=C(C=C2)N=NC4=C5C(=CC(=C4)S(=O)(=O)[O-])C=C(C=C5O)S(=O)(=O)[O-])C=CC=C3S(=O)(=O)[O-].[Na+].[Na+].[Na+] | O54: Sanders 2014 | R54: Sanders 2014 | U54: Jennison, C.; Lucantoni, L.; O’Neill, M. T.; McConville, R.; Erickson, S. M.; Cowman, A. F.; Sleebs, B. E.; Avery, V. M.; Boddey, J. A., Inhibition of plasmepsin V activity blocks Plasmodium falciparum gametocytogenesis and transmission to mosquitoes. Cell Reports 2019, 29 (12), 3796-3806. e4.
A55: Apicidin | B55: Apicidin | D55: 23.10 | E55: 103.60 | F55: 590.20 | I55: =E55/D55 -> 4.48 | J55: =F55/D55 -> 25.55 | M55: O=C1C([C@@H](C)CC)NC([C@H](CC2=CN(OC)C3=C2C=CC=C3)NC([C@H](CCCCCC(CC)=O)NC([C@@]4([H])CCCCN41)=O)=O)=O | O55: vanheer 2020 | P55: vanheer 2020 | Q55: vanheer 2020 | U55: Bolscher, J.; Koolen, K.; Van Gemert, G.; Van de Vegte-Bolmer, M.; Bousema, T.; Leroy, D.; Sauerwein, R.; Dechering, K., A combination of new screening assays for prioritization of transmission-blocking antimalarials reveals distinct dynamics of marketed and experimental drugs. Journal of Antimicrobial Chemotherapy 2015, 70 (5), 1357-1366.
A56: MMV000002 | B56: AQ-13 | D56: 15.15 | E56: 221.52 | F56: 5000.00 | G56: 3500.00 | I56: =E56/D56 -> 14.62 | J56: =F56/D56 -> 330.03 | K56: =G56/D56 -> 231.02 | M56: CCN(CC)CCCNc1ccnc2cc(Cl)ccc12 | O56: Lucantoni 2013 | P56: Lucantoni 2013 | Q56: Plouffe 2016 | R56: Lucantoni 2015 | U56: Spillman, N. J.; Allen, R. J.; McNamara, C. W.; Yeung, B. K.; Winzeler, E. A.; Diagana, T. T.; Kirk, K., Na+ regulation in the malaria parasite Plasmodium falciparum involves the cation ATPase PfATP4 and is a target of the spiroindolone antimalarials. Cell Host & Microbe 2013, 13 (2), 227-237.
A57: AR-42 | B57: AR-42 | D57: 22.10 | E57: 175.30 | F57: 1000.00 | I57: =E57/D57 -> 7.93 | J57: =F57/D57 -> 45.25 | M57: ClC1=CC(NC(C2=C(C)NC(CCCC3=O)=C3C2C4=CC=CO4)=O)=C(Cl)C=C1 | O57: vanheer 2020 | P57: vanheer 2020 | Q57: vanheer 2020 | U57: Kato, N.; Comer, E.; Sakata-Kato, T.; Sharma, A.; Sharma, M.; Maetani, M.; Bastien, J.; Brancucci, N. M.; Bittker, J. A.; Corey, V., Diversity-oriented synthesis yields novel multistage antimalarial inhibitors. Nature 2016, 538 (7625), 344-349.
A58: NCGC00164639 | B58: Arsenic trioxide | D58: 3981.07 | F58: 5000.00 | J58: =F58/D58 -> 1.26 | M58: O1[As]2O[As]3O[As]1O[As](O2)O3 | O58: Eastman | Q58: Sun 2014 | U58: Ahenkorah, S.; Coertzen, D.; Tong, J. X.; Fridianto, K.; Wittlin, S.; Birkholtz, L.-M.; Tan, K. S.; Lam, Y.; Go, M.-L.; Haynes, R. K., Antimalarial N 1, N 3-Dialkyldioxonaphthoimidazoliums: Synthesis, Biological Activity, and Structure–activity Relationships. ACS Medicinal Chemistry Letters 2019, 11 (1), 49-55.
A59: MMV000019 | B59: Artefenomel (OZ439) | D59: 3.00 | E59: 20.20 | G59: 5000.00 | I59: =E59/D59 -> 6.73 | K59: =G59/D59 -> 1666.67 | M59: =VLOOKUP(A59,[1]Sheet1!$A:$O,15,FALSE) -> C(CN1CCOCC1)Oc2ccc(cc2)[C@@H]3CC[C@@]4(CC3)OO[C@@]5(O4)[C@@H]6CC7C[C@@H](CC5C7)C6 | O59: This study | P59: This study | Q59: This study | R59: This study | U59: Sanders, N. G.; Sullivan, D. J.; Mlambo, G.; Dimopoulos, G.; Tripathi, A. K., Gametocytocidal screen identifies novel chemical classes with Plasmodium falciparum transmission blocking activity. PloS one 2014, 9 (8), e105817.
A60: MMV000003 | B60: Artemether | D60: 1.80 | E60: 3.73 | F60: 3.13 | G60: 5000.00 | I60: 2.07 | J60: =F60/D60 -> 1.74 | K60: 2777.78 | M60: CO[C@H]1O[C@@H]2O[C@@]3(C)CC[C@H]4[C@H](C)CC[C@@H]([C@H]1C)[C@@]24OO3 | O60: de Lange 2018 | P60: Lucantoni 2013 | Q60: Duffy 2013 | R60: Plouffe 2016 | U60: Nilsson, S. K.; Childs, L. M.; Buckee, C.; Marti, M., Targeting Human Transmission Biology for Malaria Elimination. PLoS Pathog 2015, 11 (6), e1004871.
A61: MMV000003 | B61: Artemether | D61: 5.70 | E61: 62.50 | G61: 5000.00 | I61: 10.96 | K61: 877.19 | M61: =VLOOKUP(A61,[1]Sheet1!$A:$O,15,FALSE) -> CO[C@H]1O[C@@H]2O[C@@]3(C)CC[C@H]4[C@H](C)CC[C@@H]([C@H]1C)[C@@]24OO3 | O61: This study | P61: This study | Q61: This study | R61: This study | U61: Abacha, Y. Z.; Forkuo, A. D.; Gbedema, S. Y.; Mittal, N.; Ottilie, S.; Rocamora, F.; Winzeler, E. A.; Van Schalkwyk, D. A.; Kelly, J. M.; Taylor, M. C., Semi-Synthetic Analogues of Cryptolepine as a Potential Source of Sustainable Drugs for the Treatment of Malaria, Human African Trypanosomiasis, and Cancer. Frontiers in Pharmacology 2022, 13, 875647.
A62: Artemiside | B62: Artemiside | D62: 1.11 | E62: 16.40 | F62: 1.50 | G62: 200.00 | I62: 14.77 | J62: =F62/D62 -> 1.35 | K62: 180.18 | M62: CC1CCC2C(C)C(OC3OC4(C)CCC1C32OO4)N1CCSCC1 | O62: Coertzen 2018 | P62: Coertzen 2018 | Q62: Coertzen 2018 | R62: Coertzen 2018 | U62: Phillips, M. A.; Lotharius, J.; Marsh, K.; White, J.; Dayan, A.; White, K. L.; Njoroge, J. W.; El Mazouni, F.; Lao, Y.; Kokkonda, S., A long-duration dihydroorotate dehydrogenase inhibitor (DSM265) for prevention and treatment of malaria. Science Translational Medicine 2015, 7 (296), 296ra111-296ra111.
A63: MMV000006 | B63: Artemisinin | D63: 0.57 | E63: 11.79 | F63: 5.47 | G63: 5000.00 | I63: 20.68 | J63: =F63/D63 -> 9.60 | K63: 8771.93 | M63: C[C@@H]1CC[C@H]2[C@@H](C)C(=O)O[C@@H]3O[C@@]4(C)CC[C@@H]1[C@@]23OO4 | O63: Coertzen 2018 | P63: Plouffe 2016 | Q63: Duffy 2013 | R63: Plouffe 2016 | U63: De Lange, C.; Coertzen, D.; Smit, F. J.; Wentzel, J. F.; Wong, H. N.; Birkholtz, L.-M.; Haynes, R. K.; David, D. D., Synthesis, antimalarial activities and cytotoxicities of amino-artemisinin-1, 2-disubstituted ferrocene hybrids. Bioorganic & Medicinal Chemistry Letters 2018, 28 (19), 3161-3163.
A64: MMV000039 | B64: Artemisone | D64: 0.18 | E64: 0.94 | F64: 1.70 | G64: 125.00 | I64: 5.22 | J64: =F64/D64 -> 9.44 | K64: 694.44 | M64: C[C@@H]1CC[C@H]2[C@@H](C)[C@@H](O[C@@H]3O[C@@]4(C)CC[C@@H]1[C@@]23OO4)N5CCS(=O)(=O)CC5 | O64: Lucantoni 2013 | P64: Lucantoni 2013 | Q64: Duffy 2013 | R64: Coertzen 2018 | U64: Delves, M.; Lafuente-Monasterio, M. J.; Upton, L.; Ruecker, A.; Leroy, D.; Gamo, F.-J.; Sinden, R., Fueling open innovation for malaria transmission-blocking drugs: hundreds of molecules targeting early parasite mosquito stages. Frontiers in Microbiology 2019, 10, 2134.
A65: Artemisox | B65: Artemisox | D65: 1.95 | E65: 18.94 | F65: 2.72 | I65: 9.71 | J65: =F65/D65 -> 1.39 | M65: O=S1CCN(CC1)C1OC2OC3(C)CCC4C(C)CCC(C1C)C42OO3 | O65: Gibhard 2021 | P65: Gibhard 2021 | Q65: Gibhard 2021 | U65: Lucantoni, L.; Silvestrini, F.; Signore, M.; Siciliano, G.; Eldering, M.; Dechering, K. J.; Avery, V. M.; Alano, P., A simple and predictive phenotypic High Content Imaging assay for Plasmodium falciparum mature gametocytes to identify malaria transmission blocking compounds. Scientific reports 2015, 5, 16414.
A66: MMV000004 | B66: Artenimol (DHA) | D66: 1.45 | E66: 20.50 | G66: 2103.30 | I66: 14.14 | K66: =G66/D66 -> 1450.55 | M66: =VLOOKUP(A66,[1]Sheet1!$A:$O,15,FALSE) -> C[C@@H]1CC[C@H]2[C@@H](C)[C@@H](O)O[C@@H]3O[C@@]4(C)CC[C@@H]1[C@@]23OO4 | O66: This study | P66: This study | Q66: This study | R66: This study | U66: Imperatore, C.; Persico, M.; Senese, M.; Aiello, A.; Casertano, M.; Luciano, P.; Basilico, N.; Parapini, S.; Paladino, A.; Fattorusso, C., Exploring the antimalarial potential of the methoxy-thiazinoquinone scaffold: Identification of a new lead candidate. Bioorganic Chemistry 2019, 85, 240-252.
A67: MMV000005 | B67: Artesunate | D67: 0.82 | E67: 2.96 | F67: 2.53 | G67: 5000.00 | I67: 3.61 | J67: =F67/D67 -> 3.09 | K67: =G67/D67 -> 6097.56 | M67: C[C@@H]1CC[C@H]2[C@@H](C)[C@H](OC(=O)CCC(=O)O)O[C@@H]3O[C@@]4(C)CC[C@@H]1[C@@]23OO4 | O67: Lucantoni 2013 | P67: Lucantoni 2013 | Q67: Duffy 2013 | R67: Plouffe 2016 | U67: Kuhen, K. L.; Chatterjee, A. K.; Rottmann, M.; Gagaring, K.; Borboa, R.; Buenviaje, J.; Chen, Z.; Francek, C.; Wu, T.; Nagle, A., KAF156 is an antimalarial clinical candidate with potential for use in prophylaxis, treatment, and prevention of disease transmission. Antimicrobial agents and chemotherapy 2014, 58 (9), 5060-5067.
A68: Arylamine | B68: Arylamine | D68: 1.30 | E68: 38.20 | F68: 16.42 | I68: 29.38 | J68: 12.63 | M68: Nc1cc2Nc3ccccc3Oc2cc1.Fc1ccc(cc1)NC1OC2OC3(C)CCC4C(C)CCC(C1C)C24OO3 | O68: Wong 2020 | P68: Wong 2020 | Q68: Wong 2020 | U68: LaMonte, G. M.; Rocamora, F.; Marapana, D. S.; Gnädig, N. F.; Ottilie, S.; Luth, M. R.; Worgall, T. S.; Goldgof, G. M.; Mohunlal, R.; Santha Kumar, T., Pan-active imidazolopiperazine antimalarials target the Plasmodium falciparum intracellular secretory pathway. Nature Communications 2020, 11 (1), 1-15.
A69: NCGC00095160 | B69: ASPARTAME | D69: 5000.00 | F69: 891.25 | J69: 0.18 | M69: O=C(O)C[C@H](N)C(=O)N[C@@H](Cc1ccccc1)C(=O)OC | O69: Eastman | Q69: Sun 2014 | U69: Mambwe, D.; Kumar, M.; Ferger, R.; Taylor, D.; Njoroge, M.; Coertzen, D.; Reader, J.; Van der Watt, M.; Birkholtz, L.-M.; Chibale, K., Structure–activity relationship studies reveal new astemizole analogues active against Plasmodium falciparum in vitro. ACS Medicinal Chemistry Letters 2021, 12 (8), 1333-1341.
A70: AST | B70: AST | D70: 86.00 | E70: 5000.00 | F70: 3400.00 | G70: 3350.00 | I70: =E70/D70 -> 58.14 | J70: 39.53 | K70: =G70/D70 -> 38.95 | M70: FC(C=C1)=CC=C1CN2C3=CC=CC=C3N=C2NC4CCN(CCC5=CC=C(OC)C=C5)CC4 | O70: Kumar 2019 | P70: Kumar 2019 | Q70: Kumar 2019 | R70: Mambwe 2021 | U70: Kumar, M.; Okombo, J.; Mambwe, D.; Taylor, D.; Lawrence, N.; Reader, J.; Van der Watt, M.; Fontinha, D.; Sanches-Vaz, M.; Bezuidenhout, B. C., Multistage antiplasmodium activity of astemizole analogues and inhibition of hemozoin formation as a contributor to their mode of action. ACS Infectious Diseases 2018, 5 (2), 303-315.
A71: NCGC00016913 | B71: ASTEMIZOLE | D71: 1000.00 | F71: 3162.28 | J71: 3.16 | M71: Fc1ccc(cc1)Cn4c5ccccc5nc4NC3CCN(CCc2ccc(OC)cc2)CC3 | O71: Eastman | Q71: Sun 2014 | U71: Moyo, P.; Kunyane, P.; Selepe, M. A.; Eloff, J. N.; Niemand, J.; Louw, A. I.; Maharaj, V. J.; Birkholtz, L.-M., Bioassay-guided isolation and identification of gametocytocidal compounds from Artemisia afra (Asteraceae). Malaria journal 2019, 18, 1-11.
A72: MMV000046 | B72: Atovaquone | D72: 0.27 | E72: 5000.00 | G72: 1000.00 | I72: =E72/D72 -> 18518.52 | K72: =G72/D72 -> 3703.70 | M72: OC1=C([C@@H]2CC[C@H](CC2)c3ccc(Cl)cc3)C(=O)c4ccccc4C1=O | O72: Lucantoni 2013 | P72: Plouffe 2016 | Q72: Lucantoni 2016 | R72: Reader 2022 | U72: Buchholz, K.; Burke, T. A.; Williamson, K. C.; Wiegand, R. C.; Wirth, D. F.; Marti, M., A high-throughput screen targeting malaria transmission stages opens new avenues for drug development. Journal of Infectious Diseases 2011, 203 (10), 1445-1453.
A73: MMV000046 | B73: Atovaquone | D73: 1.00 | E73: 5000.00 | G73: 5000.00 | I73: =E73/D73 -> 5000.00 | K73: =G73/D73 -> 5000.00 | M73: =VLOOKUP(A73,[1]Sheet1!$A:$O,15,FALSE) -> OC1=C([C@@H]2CC[C@H](CC2)c3ccc(Cl)cc3)C(=O)c4ccccc4C1=O | O73: This study | P73: This study | Q73: This study | R73: This study | U73: Yuan, J.; Cheng, K. C.-C.; Johnson, R. L.; Huang, R.; Pattaradilokrat, S.; Liu, A.; Guha, R.; Fidock, D. A.; Inglese, J.; Wellems, T. E., Chemical genomic profiling for antimalarial therapies, response signatures, and molecular targets. Science 2011, 333 (6043), 724-729.
A74: Auranofin | B74: Auranofin | D74: 700.00 | F74: 550.00 | J74: =F74/D74 -> 0.79 | M74: CCP(CC)CC.CC(=O)OCC1C(C(C(C(O1)[S-])OC(=O)C)OC(=O)C)OC(=O)C.[Au+] | O74: Duffy 2017 | Q74: Duffy 2017 | U74: Yuan, J.; Johnson, R. L.; Huang, R.; Wichterman, J.; Jiang, H.; Hayton, K.; Fidock, D. A.; Wellems, T. E.; Inglese, J.; Austin, C. P., Genetic mapping of targets mediating differential chemical phenotypes in Plasmodium falciparum. Nature Chemical Biology 2009, 5 (10), 765-771.
A75: MMV674253 | B75: AZ412/MMV253 | D75: 9.00 | E75: 141.97 | G75: 5000.00 | I75: =E75/D75 -> 15.77 | K75: =G75/D75 -> 555.56 | M75: =VLOOKUP(A75,[1]Sheet1!$A:$O,15,FALSE) -> CC1CN(CCN1C)c1cnc(nc1Nc1cc(n(n1)C)C)Nc1nc(C)c(c(c1)C1CC1)F | O75: This study | P75: This study | Q75: This study | R75: This study | U75: Gamo, F.-J.; Sanz, L. M.; Vidal, J.; de Cozar, C.; Alvarez, E.; Lavandera, J.-L.; Vanderwall, D. E.; Green, D. V.; Kumar, V.; Hasan, S., Thousands of chemical starting points for antimalarial lead identification. Nature 2010, 465 (7296), 305.
A76: MMV1580483 | B76: AZD-0156 | D76: 775.67 | F76: 236.10 | J76: =F76/D76 -> 0.30 | M76: O=[C]1[N](C2=C([N]1C)C=NC3=CC=C(C=C23)C4=CN=C(OCCCN(C)C)C=C4)C5CCOCC5 | O76: Reader 2021 | Q76: Reader 2021 | U76: Pegoraro, S.; Duffey, M.; Otto, T. D.; Wang, Y.; Rösemann, R.; Baumgartner, R.; Fehler, S. K.; Lucantoni, L.; Avery, V. M.; Moreno-Sabater, A., SC83288 is a clinical development candidate for the treatment of severe malaria. Nature Communications 2017, 8 (1), 14193.
A77: B-II.4 | B77: B-II.4 | D77: 129.97 | E77: 382.10 | F77: 5000.00 | I77: =E77/D77 -> 2.94 | J77: 38.47 | M77: CCN(CC1=CC=C(Cl)C=C1O)CCNC2=NC3=CC=CC=C3N2 | O77: Leshabane 2021 | P77: Leshabane 2021 | Q77: Leshabane 2021 | U77: Magistrado, P. A.; Corey, V. C.; Lukens, A. K.; LaMonte, G.; Sasaki, E.; Meister, S.; Wree, M.; Winzeler, E.; Wirth, D. F., Plasmodium falciparum cyclic amine resistance locus (PfCARL), a resistance mechanism for two distinct compound classes. ACS Infectious Diseases 2016, 2 (11), 816-826.
A78: NCGC00160423 | B78: Bametano | D78: 5000.00 | F78: 1412.54 | J78: 0.28 | M78: OC(CNCCCC)c1ccc(O)cc1 | O78: Eastman | Q78: Sun 2014 | U78: Yuthavong, Y.; Tarnchompoo, B.; Vilaivan, T.; Chitnumsub, P.; Kamchonwongpaisan, S.; Charman, S. A.; McLennan, D. N.; White, K. L.; Vivas, L.; Bongard, E., Malarial dihydrofolate reductase as a paradigm for drug development against a resistance-compromised target. Proceedings of the National Academy of Sciences 2012, 109 (42), 16823-16828.
A79: Barasertib (AZD1152-HQPA) | B79: Barasertib (AZD1152-HQPA) | D79: 677.80 | E79: 518.10 | F79: 1000.00 | I79: =E79/D79 -> 0.76 | J79: 1.48 | M79: CCN(CCOP(O)(O)=O)CCCOC1=CC2=C(C(NC3=CC(CC(NC4=CC(F)=CC=C4)=O)=NN3)=NC=N2)C=C1 | O79: vanheer 2020 | P79: vanheer 2020 | Q79: vanheer 2020 | U79: Posayapisit, N.; Pengon, J.; Prommana, P.; Shoram, M.; Yuthavong, Y.; Uthaipibull, C.; Kamchonwongpaisan, S.; Jupatanakul, N., Transgenic pyrimethamine-resistant plasmodium falciparum reveals transmission-blocking potency of P218, a novel antifolate candidate drug. International Journal for Parasitology 2021, 51 (8), 635-642.
A80: NCGC00025271 | B80: Bay 11-7085 | D80: 5000.00 | F80: 1258.93 | J80: 0.25 | M80: CC(C)(C)C1=CC=C(C=C1)[S+]([O-])(=O)/C=C/C#N | O80: Yuan 2009 | Q80: Sun 2014 | U80: LaMonte, G. M.; Almaliti, J.; Bibo-Verdugo, B.; Keller, L.; Zou, B. Y.; Yang, J.; Antonova-Koch, Y.; Orjuela-Sanchez, P.; Boyle, C. A.; Vigil, E., Development of a potent inhibitor of the Plasmodium proteasome with reduced mammalian toxicity. Journal of medicinal chemistry 2017, 60 (15), 6721-6732.
A81: Belinostat (PXD101) | B81: Belinostat (PXD101) | D81: 186.60 | E81: 326.10 | F81: 1000.00 | I81: =E81/D81 -> 1.75 | J81: 5.36 | M81: C1=CC=C(C=C1)NS(=O)(=O)C2=CC=CC(=C2)/C=C/C(=O)NO | O81: vanheer 2020 | P81: vanheer 2020 | Q81: vanheer 2020 | U81: Coteron, J. M.; Marco, M.; Esquivias, J.; Deng, X.; White, K. L.; White, J.; Koltun, M.; El Mazouni, F.; Kokkonda, S.; Katneni, K., Structure-guided lead optimization of triazolopyrimidine-ring substituents identifies potent Plasmodium falciparum dihydroorotate dehydrogenase inhibitors with clinical candidate potential. Journal of medicinal chemistry 2011, 54 (15), 5540-5561.
A82: NCGC00016288 | B82: Bemegride | D82: 5000.00 | F82: 3162.28 | J82: 0.63 | M82: CCC1(C)CC(=O)NC(=O)C1 | O82: Eastman | Q82: Sun 2014 | U82: Charman, S. A.; Arbe-Barnes, S.; Bathurst, I. C.; Brun, R.; Campbell, M.; Charman, W. N.; Chiu, F. C.; Chollet, J.; Craft, J. C.; Creek, D. J., Synthetic ozonide drug candidate OZ439 offers new hope for a single-dose cure of uncomplicated malaria. Proceedings of the National Academy of Sciences 2011, 108 (11), 4400-4405.
A83: NCGC00016312 | B83: Bendroflumethiazide | D83: 5000.00 | F83: 3162.28 | J83: 0.63 | M83: FC(F)(F)c1cc2NC(NS(=O)(=O)c2cc1S(N)(=O)=O)Cc3ccccc3 | O83: Eastman | Q83: Sun 2014 | U83: Wang, X.; Dong, Y.; Wittlin, S.; Charman, S. A.; Chiu, F. C.; Chollet, J.; Katneni, K.; Mannila, J.; Morizzi, J.; Ryan, E., Comparative antimalarial activities and ADME profiles of ozonides (1, 2, 4-trioxolanes) OZ277, OZ439, and their 1, 2-dioxolane, 1, 2, 4-trioxane, and 1, 2, 4, 5-tetraoxane isosteres. Journal of medicinal chemistry 2013, 56 (6), 2547-2555.
A84: NCGC00016602 | B84: Benperidol | D84: 3981.07 | F84: 3548.13 | J84: 0.89 | M84: Fc1ccc(cc1)C(=O)CCCN2CCC(CC2)N3c4ccccc4NC3=O | O84: Eastman | Q84: Sun 2014 | U84: Harmse, R.; Coertzen, D.; Wong, H. N.; Smit, F. J.; van der Watt, M. E.; Reader, J.; Nondaba, S. H.; Birkholtz, L. M.; Haynes, R. K.; N'Da, D. D., Activities of 11‐azaartemisinin and N‐sulfonyl derivatives against asexual and transmissible malaria parasites. ChemMedChem 2017, 12 (24), 2086-2093.
A85: NCGC00016373 | B85: Benzethonium chloride | D85: 3981.07 | F85: 5000.00 | J85: 1.26 | M85: [Cl-].CC(C)(C)CC(C)(C)c2ccc(OCCOCC[N+](C)(C)Cc1ccccc1)cc2 | O85: Eastman | Q85: Sun 2014 | U85: Fügi, M. A.; Wittlin, S.; Dong, Y.; Vennerstrom, J. L., Probing the antimalarial mechanism of artemisinin and OZ277 (arterolane) with nonperoxidic isosteres and nitroxyl radicals. Antimicrobial agents and chemotherapy 2010, 54 (3), 1042-1046.
A86: benzododecinium chloride | B86: benzododecinium chloride | D86: 100.00 | G86: 5000.00 | K86: =G86/D86 -> 50.00 | M86: CCCCCCCCCCCC[N+](C)(C)CC1=CC=CC=C1 | O86: Sanders 2014 | R86: Sanders 2014 | U86: Eastman, R. T.; Pattaradilokrat, S.; Raj, D. K.; Dixit, S.; Deng, B.; Miura, K.; Yuan, J.; Tanaka, T. Q.; Johnson, R. L.; Jiang, H., A class of tricyclic compounds blocking malaria parasite oocyst development and transmission. Antimicrobial agents and chemotherapy 2013, 57 (1), 425-435.
A87: NCGC00159380 | B87: Benzoyl peroxide | D87: 5000.00 | F87: 446.68 | J87: =F87/D87 -> 0.09 | M87: O=C(OOC(=O)c1ccccc1)c2ccccc2 | O87: Eastman | Q87: Sun 2014
A88: NCGC00016526 | B88: Berberine chloride | D88: 251.19 | F88: 5000.00 | J88: 19.91 | M88: [Cl-].COc2ccc1cc3c4cc5OCOc5cc4CC[n+]3cc1c2OC | O88: Eastman | Q88: Sun 2014
A89: NCGC00093685 | B89: Bestatin hydrochloride | D89: 630.96 | F89: 5000.00 | J89: 7.92 | M89: Cl.N[C@H](Cc1ccccc1)[C@H](O)C(=O)N[C@H](CC(C)C)C(=O)O | O89: Yuan 2009 | Q89: Sun 2014
A90: NCGC00094112 | B90: BIO | D90: 1995.26 | F90: 5000.00 | J90: 2.51 | M90: O\N=C1\C(NC2=CC=CC=C12)=C3\C(=O)NC4=CC(=CC=C34)Br | O90: Yuan 2009 | Q90: Sun 2014
A91: MMV1557856 | B91: Birinapant | D91: 236.00 | F91: 135.20 | J91: 0.57 | M91: FC6=CC1=C(C(=C([NH]1)C2=C(C3=C([NH]2)C=C(F)C=C3)C[C@H]4N(C(=O)[C@@H](NC(=O)[C@@H](NC)C)CC)C[C@H](C4)O)C[C@H]5N(C(=O)[C@@H](NC(=O)[C@@H](NC)C)CC)C[C@H](C5)O)C=C6 | O91: Reader 2021 | Q91: Reader 2021
A92: BIX01294 | B92: BIX01294 | D92: 28.00 | E92: 14.00 | F92: 5000.00 | I92: =E92/D92 -> 0.50 | J92: 178.57 | M92: COc1cc2nc(nc(c2cc1OC)NC1CCN(CC1)Cc1ccccc1)N1CCCN(CC1)C | O92: Coetzee 2020 | P92: Coetzee 2020 | Q92: Coetzee 2020
A93: BIX01294 (hydrochloride hydrate) | B93: BIX01294 (hydrochloride hydrate) | D93: 10.50 | E93: 12.30 | F93: 939.00 | I93: =E93/D93 -> 1.17 | J93: 89.43 | M93: COC(C(OC)=C1)=CC2=C1C(NC3CCN(CC4=CC=CC=C4)CC3)=NC(N5CCCN(C)CC5)=N2.Cl.Cl.Cl.O | O93: vanheer 2020 | P93: vanheer 2020 | Q93: vanheer 2020
A94: MMV084032 | B94: Borrelidine | D94: 4228.33 | E94: 5000.00 | G94: 5000.00 | I94: =E94/D94 -> 1.18 | K94: =G94/D94 -> 1.18 | M94: =VLOOKUP(A94,[1]Sheet1!$A:$O,15,FALSE) -> CC1CC(C)CC(C)C(O)\C(=C/C=C\CC(OC(=O)CC(O)C(C)C1)C2CCCC2C(=O)O)\C#N | O94: This study | P94: This study | Q94: This study | R94: This study
A95: Bortezomib | B95: Bortezomib | D95: 150.00 | F95: 74.00 | J95: =F95/D95 -> 0.49 | M95: B(C(CC(C)C)NC(=O)C(CC1=CC=CC=C1)NC(=O)C2=NC=CN=C2)(O)O | O95: Yuan 2011 | Q95: Sun 2014
A96: BRD0026 | B96: BRD-K70170026-001-01-9 | D96: 1.00 | F96: 1980.00 | J96: =F96/D96 -> 1980.00 | M96: OCC1C(c2ccccc2c2ccc(OC)cc2)C(C#N)N1C(=O)C1CCCC1 | O96: Kato 2016 | Q96: Kato 2016
A97: MMV1793038 | B97: BRD7539 | D97: 5.54 | E97: 5000.00 | G97: 5000.00 | I97: =E97/D97 -> 902.53 | K97: =G97/D97 -> 902.53 | M97: OCC1C(c2ccc(C#Cc3cccc(F)c3)cc2)C(C#N)N1C(=O)NCCC | O97: This study | P97: This study | Q97: This study | R97: This study
A98: MMV687815 | B98: BRD7929 | D98: 1.07 | E98: 12.45 | G98: 5000.00 | I98: =E98/D98 -> 11.64 | K98: =G98/D98 -> 4672.90 | M98: COc1ccc(cc1)NC(=O)N1CC2C(c3ccc(C#Cc4ccccc4)cc3)C(CN(C)C)N2CCCC1 | O98: This study | P98: This study | Q98: This study | R98: This study
A99: NCGC00093648 | B99: Brefeldin A from Penicillium brefeldianum | D99: 1995.26 | F99: 2818.38 | J99: =F99/D99 -> 1.41 | M99: C[C@H]1CCC/C=C/C2C[C@H](O)C[C@@]2(O)C/C=C/C(=O)O1 | O99: Yuan 2009 | Q99: Sun 2014
A100: NCGC00160566 | B100: Broquinaldol | D100: 5000.00 | F100: 3162.28 | J100: 0.63 | M100: Oc1c(Br)cc(Br)c2ccc(C)nc12 | O100: Eastman | Q100: Sun 2014
A101: NCGC00181150 | B101: BRYOSTATIN-1 | D101: 3981.07 | F101: 5000.00 | J101: 1.26 | M101: O=C(OC)\C=C3\C[C@H]4C[C@]1(O)O[C@@H](C[C@H](OC(C)=O)C1(C)C)C[C@@H](O)CC(=O)O[C@H](C[C@@H]2C\C(=C/C(=O)OC)[C@H](OC(=O)\C=C\C=C\CCC)[C@@](O)(O2)C(C)(C)C=C[C@@H](C3)O4)[C@@H](C)O | O101: Eastman | Q101: Sun 2014
A102: Buparvaquone | B102: Buparvaquone | D102: 140.00 | F102: 5000.00 | J102: 35.71 | M102: CC(C)(C)C1CCC(CC1)CC2=C(C3=CC=CC=C3C(=O)C2=O)O | O102: Duffy 2017 | Q102: Duffy 2017
A103: NCGC00166015 | B103: C.I. Basic Basic Violet | D103: 1584.89 | F103: 5000.00 | J103: 3.15 | M103: Cl.N=C1C=C/C(C=C1)=C(\c2ccc(N)c(C)c2)c3ccc(N)cc3 | O103: Eastman | Q103: Sun 2014
A104: NCGC00093727 | B104: Caffeic acid phenethyl ester | D104: 5000.00 | F104: 3981.07 | J104: 0.80 | M104: OC1=C(O)C=C(\C=C\C(=O)OCCC2=CC=CC=C2)C=C1 | O104: Yuan 2009 | Q104: Sun 2014
A105: NCGC00025064 | B105: Calcimycin | D105: 1000.00 | F105: 630.96 | J105: 0.63 | M105: CNC1=C(C(O)=O)C2=C(OC(=N2)C[C@H]3O[C@@]4(CC[C@H]3C)O[C@@H]([C@H](C)C[C@H]4C)[C@H](C)C(=O)C5=CC=C[NH]5)C=C1 | O105: Yuan 2009 | Q105: Sun 2014
A106: NCGC00166100 | B106: CAMPHENE | D106: 5000.00 | F106: 3162.28 | J106: 0.63 | M106: CC2(C)C(=C)[C@@H]1CC[C@H]2C1 | O106: Eastman | Q106: Sun 2014
A107: NCGC00181140 | B107: CARBOQUONE | D107: 794.33 | F107: 5000.00 | J107: 6.29 | M107: NC(=O)OCC(OC)C=1C(=O)C(=C(C)C(=O)C=1N2CC2)N3CC3 | O107: Eastman | Q107: Sun 2014
A108: Carmaphycin B | B108: Carmaphycin B | D108: 4.10 | G108: 160.00 | K108: =G108/D108 -> 39.02 | M108: CC1(CO1)C(=O)C(NC(=O)C(CCS(C)(=O)=O)NC(=O)C(NC(=O)CCCCC)C(C)C)CC(C)C | O108: LaMonte 2017 | R108: LaMonte 2017
A109: MMV642944 | B109: CC_642944 | D109: 13.78 | E109: 306.60 | G109: 319.10 | I109: =E109/D109 -> 22.25 | K109: =G109/D109 -> 23.16 | M109: =VLOOKUP(A109,[1]Sheet1!$A:$O,15,FALSE) -> CS(=O)(=O)c1ccc(cc1)c2cnc(N)c(n2)c3ccc(nc3)C(F)(F)F | O109: This study | P109: This study | Q109: This study | R109: This study
A110: NCGC00016858 | B110: Cefadroxil | D110: 5000.00 | F110: 2511.89 | J110: =F110/D110 -> 0.50 | M110: CC=3CS[C@H]2N(C(=O)[C@H]2NC(=O)[C@H](N)c1ccc(O)cc1)C=3C(=O)O | O110: Eastman | Q110: Sun 2014
A111: NCGC00159465 | B111: Cefazolin | D111: 5000.00 | F111: 562.34 | J111: 0.11 | M111: O=C(O)C=3N4C(=O)[C@@H](NC(=O)Cn1cnnn1)[C@H]4SCC=3CSc2nnc(C)s2 | O111: Eastman | Q111: Sun 2014
A112: NCGC00017114 | B112: Cefsulodin sodium salt | D112: 5000.00 | F112: 2818.38 | J112: 0.56 | M112: [Na+].[O-]S(=O)(=O)[C@@H](c1ccccc1)C(=O)N[C@@H]4C(=O)N3[C@H]4SCC(C[n+]2ccc(cc2)C(N)=O)=C3C([O-])=O | O112: Eastman | Q112: Sun 2014
A113: Celastrol | B113: Celastrol | D113: 820.00 | E113: 1160.00 | F113: 282.40 | I113: =E113/D113 -> 1.41 | J113: 0.34 | M113: O=C(OC)C1(C)CCC2(C)CCC3(C)C4=CC=C5C(=CC(=O)C(O)=C5C)C4(C)CCC3(C)C2C1 | O113: Ng 2022 | P113: Ng 2022 | Q113: Ng 2022
A114: NCGC00017093 | B114: Cephapirin sodium salt | D114: 5000.00 | F114: 501.19 | J114: 0.10 | M114: [Na+].[O-]C(=O)C=2N3C(=O)[C@@H](NC(=O)CSc1ccncc1)[C@H]3SCC=2COC(C)=O | O114: Eastman | Q114: Sun 2014
A115: NCGC00159480 | B115: Cetamina | D115: 5000.00 | F115: 1000.00 | J115: 0.20 | M115: CNC1(CCCCC1=O)c2ccccc2Cl | O115: Eastman | Q115: Sun 2014
A116: NCGC00091023 | B116: Cetylpyridinium bromide | D116: 5000.00 | F116: 3981.07 | J116: 0.80 | M116: [Br-].CCCCCCCCCCCCCCCC[n+]1ccccc1 | O116: Eastman | Q116: Sun 2014
A117: Chaetocin | B117: Chaetocin | D117: 775.30 | E117: 292.30 | F117: 504.50 | I117: =E117/D117 -> 0.38 | J117: 0.65 | M117: O=C1[C@](CO)(SS2)N(C)C([C@]32N1[C@@H](NC4=CC=CC=C45)[C@]5([C@@]6(C7=CC=CC=C7N8)[C@H]8N(C([C@](CO)(SS9)N(C)C%10=O)=O)[C@]%109C6)C3)=O | O117: vanheer 2020 | P117: vanheer 2020 | Q117: vanheer 2020
A118: NCGC00016246 | B118: Chlorhexidine A | D118: 1995.26 | F118: 4466.84 | J118: 2.24 | M118: Clc2ccc(NC(=N)NC(=N)NCCCCCCNC(=N)NC(=N)Nc1ccc(Cl)cc1)cc2 | O118: Eastman | Q118: Sun 2014
A119: MMV000008 | B119: Chloroquine | D119: 4.69 | E119: 5.92 | F119: 253.00 | G119: 5000.00 | I119: =E119/D119 -> 1.26 | J119: 53.94 | K119: =G119/D119 -> 1066.10 | M119: CCN(CC)CCCC(C)Nc1ccnc2cc(Cl)ccc12 | O119: Lucantoni 2013 | P119: Reader 2022 | Q119: Sun 2014 | R119: Plouffe 2016
A120: MMV000008 | B120: Chloroquine | D120: 9.00 | E120: 5.92 | G120: 5000.00 | I120: =E120/D120 -> 0.66 | K120: =G120/D120 -> 555.56 | M120: =VLOOKUP(A120,[1]Sheet1!$A:$O,15,FALSE) -> CCN(CC)CCCC(C)Nc1ccnc2cc(Cl)ccc12 | O120: This study | P120: This study | Q120: This study | R120: This study
A121: MMV000050 | B121: Chlorproguanil | D121: 5000.00 | E121: 5000.00 | F121: 2002.60 | G121: 4160.00 | I121: =E121/D121 -> 1.00 | J121: =F121/D121 -> 0.40 | K121: =G121/D121 -> 0.83 | M121: CC(C)NC(=N)NC(=N)Nc1ccc(Cl)c(Cl)c1 | O121: Duffy 2013 | P121: Plouffe 2016 | Q121: Lucantoni 2016 | R121: Lucantoni 2015
A122: NCGC00015273 | B122: CHLORPROMAZINE | D122: 5000.00 | F122: 3162.28 | J122: 0.63 | M122: CN(C)CCCN1C2=C(SC3=C1C=C(Cl)C=C3)C=CC=C2 | O122: Eastman | Q122: Sun 2014
A123: NCGC00091112 | B123: Chlorure de methylrosanilinum | D123: 630.96 | F123: 3162.28 | J123: 5.01 | M123: [Cl-].C/[N+](C)=C1\C=C\C(C=C1)=C(/c2ccc(cc2)N(C)C)c3ccc(cc3)N(C)C | O123: Eastman | Q123: Sun 2014
A124: NCGC00163697 | B124: CHROMOMYCIN A3 | D124: 125.89 | F124: 630.96 | J124: 5.01 | M124: [H][C@]1(CC2=CC3=CC(O[C@H]4C[C@@H](O[C@@H]5C[C@@H](O)[C@@H](OC)[C@@H](C)O5)[C@@H](OC(O)=O)[C@@H](C)O4)=C(C)C(O)=C3C(O)=C2C(=O)[C@H]1O[C@H]1C[C@@H](O[C@H]2C[C@@H](O[C@H]3C[C@](C)(O)[C@@H](OC(C)=O)[C@H](C)O3)[C@H](O)[C@@H](C)O2)[C@H](O)[C@@H](C)O1)[C@H](OC)C(=O)[C@@H](O)[C@@H](C)O | O124: Eastman | Q124: Sun 2014
A125: MMV002731 | B125: Ciclopirox | D125: 4800.00 | F125: 259.80 | J125: 0.05 | M125: O=[C]1[N](O)C(=CC(=C1)C)C2CCCCC2 | O125: Reader 2021 | Q125: Reader 2021
A126: NCGC00013067 | B126: cinchonine | D126: 158.49 | F126: 1122.02 | J126: 7.08 | M126: O[C@@H](c2ccnc1ccccc12)[C@H]4CC3CCN4C[C@@H]3C=C | O126: Eastman | Q126: Sun 2014
A127: NCGC00166097 | B127: Cinnamyl alcohol | D127: 5000.00 | F127: 501.19 | J127: 0.10 | M127: OCC=Cc1ccccc1 | O127: Eastman | Q127: Sun 2014
A128: MMV000073 | B128: Cipargamin/KAE609/NITD609 | D128: 0.50 | E128: 1.03 | G128: 27.70 | I128: =E128/D128 -> 2.06 | K128: =G128/D128 -> 55.40 | M128: =VLOOKUP(A128,[1]Sheet1!$A:$O,15,FALSE) -> CC1Cc2c3cc(F)c(cc3[nH]c2C2(N1)C(=O)Nc1c2cc(Cl)cc1)Cl | O128: This study | P128: This study | Q128: This study | R128: This study
A129: Citarinostat (ACY-241) | B129: Citarinostat (ACY-241) | D129: 5000.00 | E129: 1000.00 | F129: 1000.00 | I129: =E129/D129 -> 0.20 | J129: =F129/D129 -> 0.20 | M129: ClC1=C(N(C2=CC=CC=C2)C3=NC=C(C(NCCCCCCC(NO)=O)=O)C=N3)C=CC=C1 | O129: vanheer 2020 | P129: vanheer 2020 | Q129: vanheer 2020
A130: MMV674143 | B130: Cladosporin | D130: 65.89 | E130: 199.40 | G130: 1000.67 | I130: =E130/D130 -> 3.03 | K130: =G130/D130 -> 15.19 | M130: =VLOOKUP(A130,[1]Sheet1!$A:$O,15,FALSE) -> C[C@H]1CCC[C@H](CC2Cc3cc(O)cc(O)c3C(=O)O2)O1 | O130: This study | P130: This study | Q130: This study | R130: This study
A131: MMV002015 | B131: Clemizole | D131: 5000.00 | F131: 238.80 | J131: =F131/D131 -> 0.05 | M131: ClC4=CC=C(C[N]2C1=C(C=CC=C1)N=C2CN3CCCC3)C=C4 | O131: Reader 2021 | Q131: Reader 2021
A132: MMV000051 | B132: Clindamycin | D132: 7.56 | E132: 5000.00 | F132: 5000.00 | G132: 5000.00 | I132: =E132/D132 -> 661.38 | J132: 661.38 | K132: =G132/D132 -> 661.38 | M132: CCC[C@@H]1C[C@H](N(C)C1)C(=O)N[C@H]([C@H](C)Cl)[C@H]2O[C@H](SC)[C@H](O)[C@@H](O)[C@H]2O | O132: Lucantoni 2013 | P132: Duffy 2013 | Q132: Duffy 2013 | R132: Plouffe 2016
A133: NCGC00015257 | B133: Clofibrate | D133: 5000.00 | F133: 2818.38 | J133: 0.56 | M133: CCOC(=O)C(C)(C)OC1=CC=C(Cl)C=C1 | O133: Eastman | Q133: Sun 2014
A134: NCGC00017142 | B134: Clofilium tosylate | D134: 794.33 | F134: 2818.38 | J134: 3.55 | M134: Clc1ccc(CCCC[N+](CC)(CC)CCCCCCC)cc1.[O-]S(=O)(=O)c1ccc(C)cc1 | O134: Eastman | Q134: Sun 2014
A135: NCGC00095016 | B135: CLOFOCTOL | D135: 3981.07 | F135: 5000.00 | J135: 1.26 | M135: Clc2cc(Cl)ccc2Cc1cc(ccc1O)C(C)(C)CC(C)(C)C | O135: Eastman | Q135: Sun 2014
A136: NCGC00015264 | B136: CLOMIPRAMINE | D136: 5000.00 | F136: 3548.13 | J136: 0.71 | M136: CN(C)CCCN1C2=C(CCC3=C1C=C(Cl)C=C3)C=CC=C2 | O136: Eastman | Q136: Sun 2014
A137: NCGC00095166 | B137: CLOPIDOL | D137: 5000.00 | F137: 3162.28 | J137: 0.63 | M137: Oc1c(Cl)c(C)nc(C)c1Cl | O137: Eastman | Q137: Sun 2014
A138: NCGC00025125 | B138: Colchicine | D138: 5000.00 | F138: 1258.93 | J138: 0.25 | M138: CC(=O)N[C@H]2CCc3cc(OC)c(OC)c(OC)c3C1=CC=C(OC)C(=O)C=C12 | O138: Yuan 2009 | Q138: Sun 2014
A139: NCGC00022472 | B139: Corticosterone | D139: 5000.00 | F139: 3981.07 | J139: 0.80 | M139: OCC(=O)[C@H]4CC[C@@H]2[C@]4(C)C[C@H](O)[C@@H]1[C@@]3(C)CCC(=O)C=C3CC[C@H]12 | O139: Yuan 2009 | Q139: Sun 2014
A140: coumarin-SAHA | B140: coumarin-SAHA | D140: 68.50 | E140: 249.70 | F140: 1000.00 | I140: =E140/D140 -> 3.65 | J140: 14.60 | M140: O=C(CCCCCCC(NO)=O)NC1=CC2=C(C(C)=CC(O2)=O)C=C1 | O140: vanheer 2020 | P140: vanheer 2020 | Q140: vanheer 2020
A141: NCGC00024896 | B141: CP55940 | D141: 5000.00 | F141: 3162.28 | J141: 0.63 | M141: CCCCCCC(C)(C)C1=CC=C([C@@H]2C[C@H](O)CC[C@H]2CCCO)C(=C1)O | O141: Yuan 2009 | Q141: Sun 2014
A142: NCGC00166232 | B142: CRESYL ACETATE | D142: 5000.00 | F142: 3162.28 | J142: 0.63 | M142: O=C(C)Oc1ccc(C)cc1 | O142: Eastman | Q142: Sun 2014
A143: MMV1578884 | B143: CRS-3123 | D143: 1643.33 | E143: 3776.00 | G143: 5000.00 | I143: =E143/D143 -> 2.30 | K143: =G143/D143 -> 3.04 | M143: =VLOOKUP(A143,[1]Sheet1!$A:$O,15,FALSE) -> Oc1cc(NCCCN[C@@H]2CCOc3c(Br)cc(Br)cc23)nc4ccsc14 | O143: This study | P143: This study | Q143: This study | R143: This study
A144: CUDC-101 | B144: CUDC-101 | D144: 35.60 | E144: 133.10 | F144: 152.00 | I144: =E144/D144 -> 3.74 | J144: =F144/D144 -> 4.27 | M144: COC1=CC2=C(C(NC3=CC=CC(C#C)=C3)=NC=N2)C=C1OCCCCCCC(NO)=O | O144: vanheer 2020 | P144: vanheer 2020 | Q144: Sun 2014
A145: CX-6258 HCl | B145: CX-6258 HCl | D145: 494.30 | E145: 472.20 | F145: 1000.00 | I145: =E145/D145 -> 0.96 | J145: =F145/D145 -> 2.02 | M145: CN1CCCN(CC1)C(=O)C2=CC=CC(=C2)C3=CC=C(O3)/C=C/4\C5=C(C=CC(=C5)Cl)NC4=O.Cl | O145: vanheer 2020 | P145: vanheer 2020 | Q145: vanheer 2020
A146: MMV000031 | B146: Cycloheximide | D146: 198.00 | E146: 912.61 | F146: 476.67 | G146: 2692.47 | I146: =E146/D146 -> 4.61 | J146: =F146/D146 -> 2.41 | K146: =G146/D146 -> 13.60 | M146: C[C@H]1C[C@H](C)C(=O)[C@@H](C1)[C@H](O)CC2CC(=O)NC(=O)C2 | O146: Lelievre 2012 | P146: Plouffe 2016 | Q146: Plouffe 2016 | R146: Plouffe 2016
A147: Cycloheximidine | B147: Cycloheximidine | D147: 45.49 | E147: 119.50 | I147: =E147/D147 -> 2.63 | M147: CC1CC(C(=O)C(C1)C(CC2CC(=O)NC(=O)C2)O)C | O147: Lucantoni 2013 | P147: Lucantoni 2013
A148: NCGC00093704 | B148: Cyclosporin A | D148: 630.96 | F148: 1412.54 | J148: =F148/D148 -> 2.24 | M148: CCC1NC(=O)C(C(O)C(C)C\C=C\C)N(C)C(=O)C(C(C)C)N(C)C(=O)C(CC(C)C)N(C)C(=O)C(CC(C)C)N(C)C(=O)C(C)NC(=O)C(C)NC(=O)C(CC(C)C)N(C)C(=O)C(NC(=O)C(CC(C)C)N(C)C(=O)CN(C)C1=O)C(C)C | O148: Yuan 2009 | Q148: Sun 2014
A149: NCGC00015288 | B149: CYCLOTHIAZIDE | D149: 5000.00 | F149: 2238.72 | J149: 0.45 | M149: N[S+]([O-])(=O)C1=C(Cl)C=C2NC(N[S+]([O-])(=O)C2=C1)C3CC\4CC3\C=C4 | O149: Eastman | Q149: Sun 2014
A150: NCGC00164531 | B150: CYSTINE | D150: 5000.00 | F150: 501.19 | J150: 0.10 | M150: N[C@@H](CSSC[C@H](N)C(=O)O)C(=O)O | O150: Eastman | Q150: Sun 2014
A151: Dacinostat, LAQ824 | B151: Dacinostat, LAQ824 | D151: 40.80 | E151: 45.30 | F151: 2266.10 | I151: =E151/D151 -> 1.11 | J151: 55.54 | M151: O=C(NO)/C=C/C1=CC=C(CN(CCC2=CNC3=C2C=CC=C3)CCO)C=C1 | O151: vanheer 2020 | P151: vanheer 2020 | Q151: vanheer 2020
A152: NCGC00164548 | B152: Danofloxacin mesylate | D152: 1995.26 | F152: 2818.38 | J152: 1.41 | M152: CN5C[C@@H]4C[C@H]5CN4c1cc2N(C=C(C(=O)O)C(=O)c2cc1F)C3CC3 | O152: Eastman | Q152: Sun 2014
A153: NCGC00093700 | B153: DAPH | D153: 5000.00 | F153: 3981.07 | J153: 0.80 | M153: O=C1NC(=O)C2=C1C=C(NC3=CC=CC=C3)C(=C2)NC4=CC=CC=C4 | O153: Yuan 2009 | Q153: Sun 2014
A154: NCGC00024246 | B154: Daunorubicinum | D154: 3981.07 | F154: 4466.84 | J154: 1.12 | M154: CC(=O)[C@@]4(O)C[C@H](O[C@H]1C[C@H](N)[C@H](O)[C@H](C)O1)c5c(O)c3C(=O)c2c(OC)cccc2C(=O)c3c(O)c5C4 | O154: Eastman | Q154: Sun 2014
A155: Decitabine | B155: Decitabine | D155: 5000.00 | E155: 5000.00 | I155: =E155/D155 -> 1.00 | M155: NC1=NC(N([C@@H]2O[C@H](CO)[C@@H](O)C2)C=N1)=O | O155: vanheer 2020 | P155: vanheer 2020
A156: Decoquinate | B156: Decoquinate | D156: 2.40 | E156: 36.00 | I156: =E156/D156 -> 15.00 | M156: O=C(OCC)C1=CNc2cc(OCC)c(OCCCCCCCCCC)cc2C1=O | O156: Yuan 2011 | P156: Da Cruz 2012
A157: NCGC00016250 | B157: Demecarium bromide | D157: 398.11 | F157: 5000.00 | J157: =F157/D157 -> 12.56 | M157: [Br-].[Br-].O=C(Oc1ccccc1[N+](C)(C)C)N(C)CCCCCCCCCCN(C)C(=O)Oc2ccccc2[N+](C)(C)C | O157: Eastman | Q157: Sun 2014
A158: NCGC00013034 | B158: Depoestradiol | D158: 5000.00 | F158: 562.34 | J158: 0.11 | M158: Oc4cc5CC[C@@H]1[C@H](CC[C@]2(C)[C@H](CC[C@@H]12)OC(=O)CCC3CCCC3)c5cc4 | O158: Eastman | Q158: Sun 2014
A159: NCGC00168786 | B159: DESERPIDINE | D159: 316.23 | F159: 2511.89 | J159: 7.94 | M159: COc1cc(cc(OC)c1OC)C(=O)O[C@@H]3C[C@@H]4CN5CCc2c6ccccc6nc2[C@H]5C[C@@H]4[C@@H]([C@H]3OC)C(=O)OC | O159: Eastman | Q159: Sun 2014
A160: NCGC00167516 | B160: DESLORELIN ACETATE | D160: 3981.07 | F160: 5000.00 | J160: 1.26 | M160: CC(=O)O.O=C1CC[C@H](N1)C(=O)N[C@@H](Cc2cncn2)C(=O)N[C@@H](Cc4cnc3ccccc34)C(=O)N[C@@H](CO)C(=O)N[C@@H](Cc5ccc(O)cc5)C(=O)N[C@H](Cc7cnc6ccccc67)C(=O)N[C@@H](CC(C)C)C(=O)N[C@@H](CCCNC(=N)N)C(=O)N8CCC[C@H]8C(=O)NCC | O160: Eastman | Q160: Sun 2014
A161: MMV000004 | B161: DHA | D161: 0.24 | E161: 0.90 | F161: 2.17 | G161: 1500.00 | I161: =E161/D161 -> 3.75 | J161: 9.04 | K161: =G161/D161 -> 6250.00 | M161: C[C@@H]1CC[C@H]2[C@@H](C)[C@@H](O)O[C@@H]3O[C@@]4(C)CC[C@@H]1[C@@]23OO4 | O161: Lucantoni 2013 | P161: Lucantoni 2013 | Q161: Duffy 2013 | R161: Coertzen 2018
A162: DHA-piperazine | B162: DHA-piperazine | D162: 3.10 | E162: 54.91 | F162: 25.70 | I162: =E162/D162 -> 17.71 | J162: 8.29 | M162: Nc1cc2Nc3ccccc3Oc2cc1.CC12OC3OC(C(C)C4CCC(C)C(CC1)C43OO2)N1CCNCC1 | O162: Wong 2020 | P162: Wong 2020 | Q162: Wong 2020
A163: NCGC00015380 | B163: DIAZOXIDE | D163: 5000.00 | F163: 501.19 | J163: 0.10 | M163: C\C1=N\C2=C(C=C(Cl)C=C2)[S+]([O-])(=O)N1 | O163: Eastman | Q163: Sun 2014
A164: NCGC00160499 | B164: DICARBINUM | D164: 5000.00 | F164: 1258.93 | J164: 0.25 | M164: Cc3cc1c(NC2CCN(C)CC12)cc3 | O164: Eastman | Q164: Sun 2014
A165: NCGC00166066 | B165: DIDECYL DIMETHYL AMMONIUM | D165: 3981.07 | F165: 5000.00 | J165: 1.26 | M165: [Br-].C[N+](C)(CCCCCCCCCC)CCCCCCCCCC | O165: Eastman | Q165: Sun 2014
A166: NCGC00016335 | B166: Dienestrol | D166: 5000.00 | F166: 1122.02 | J166: 0.22 | M166: Oc1ccc(cc1)C(=C\C)/C(=C/C)c2ccc(O)cc2 | O166: Eastman | Q166: Sun 2014
A167: NCGC00163163 | B167: DIHYDROERGOCRISTINE | D167: 5000.00 | F167: 3548.13 | J167: 0.71 | M167: CN1C[C@@H](C[C@@H]2c3cccc4ncc(C[C@@H]12)c34)C(=O)N[C@@]8(O[C@]7(O)N([C@@H](Cc5ccccc5)C(=O)N6CCC[C@H]67)C8=O)C(C)C | O167: Eastman | Q167: Sun 2014
A168: PM9 | B168: Dimer 9 | D168: 87.80 | E168: 542.00 | F168: 623.00 | I168: =E168/D168 -> 6.17 | J168: 7.10 | M168: CC1Cc2c(C(C)N1)c(OC)cc(O)c2c1cc(c(O)c2c1cc(C)cc2OC)c1cc(c2c(O)cc(OC)c3C(C)NC(C)Cc23)c2cc(C)cc(OC)c2c1O | O168: Moyo 2020 | P168: Moyo 2020 | Q168: Moyo 2020
A169: NCGC00013216 | B169: Dimercaprol | D169: 2511.89 | F169: 2818.38 | J169: 1.12 | M169: OCC(S)CS | O169: Eastman | Q169: Sun 2014
A170: NCGC00167963 | B170: DIPHENOXYLATE HYDROCHLORIDE | D170: 3162.28 | F170: 5000.00 | J170: 1.58 | M170: Cl.O=C(OCC)C3(CCN(CCC(C#N)(c1ccccc1)c2ccccc2)CC3)c4ccccc4 | O170: Eastman | Q170: Sun 2014
A171: NCGC00166113 | B171: DIPHENYLCYCLOPROPENONE | D171: 5000.00 | F171: 3162.28 | J171: 0.63 | M171: O=C2C(=C2c1ccccc1)c3ccccc3 | O171: Eastman | Q171: Sun 2014
A172: NCGC00181104 | B172: DITHIAZANINE IODIDE | D172: 3162.28 | F172: 5000.00 | J172: 1.58 | M172: [Cl-].CCN3c4ccccc4SC3=CC=CC=Cc2sc1ccccc1[n+]2CC | O172: Eastman | Q172: Sun 2014
A173: MMV098836 | B173: DNDI1417411 | D173: 5000.00 | F173: 2753.00 | J173: 0.55 | M173: COc1cc(NS(=O)(=O)c2ccc(C)cc2)c3ncccc3c1 | O173: Reader 2021 | Q173: Reader 2021
A174: NCGC00181306 | B174: DOCETAXEL | D174: 19.95 | F174: 5000.00 | J174: 250.59 | M174: CC(C)(C)OC(=O)N[C@@H](c1ccccc1)[C@@H](O)C(=O)O[C@H]5C[C@@]6(O)[C@@H](OC(=O)c2ccccc2)[C@H]4[C@@](C)([C@@H](O)C[C@H]3OC[C@]34OC(C)=O)C(=O)[C@H](O)C(=C5C)C6(C)C | O174: Eastman | Q174: Sun 2014
A175: NCGC00016977 | B175: Dorzolamide hydrochloride | D175: 5000.00 | F175: 891.25 | J175: 0.18 | M175: Cl.NS(=O)(=O)c1cc2[C@H](C[C@H](C)S(=O)(=O)c2s1)NCC | O175: Eastman | Q175: Sun 2014
A176: NCGC00163543 | B176: DOXORUBICIN | D176: 5000.00 | F176: 1778.28 | J176: 0.36 | M176: Cl.OCC(=O)[C@@]4(O)C[C@H](O[C@H]1C[C@H](N)[C@H](O)[C@H](C)O1)c5c(O)c3C(=O)c2c(OC)cccc2C(=O)c3c(O)c5C4 | O176: Eastman | Q176: Sun 2014
A177: MMV000011 | B177: Doxycycline hydrochloride | D177: 1258.93 | E177: 5000.00 | F177: 5000.00 | G177: 5000.00 | I177: =E177/D177 -> 3.97 | J177: 3.97 | K177: =G177/D177 -> 3.97 | M177: C[C@@H]1[C@H]2[C@H](O)[C@H]3[C@H](N(C)C)C(=C(C(=O)N)C(=O)[C@@]3(O)C(=C2C(=O)c4c(O)cccc14)O)O | O177: Yuan 2009 | P177: Plouffe 2016 | Q177: Plouffe 2016 | R177: Plouffe 2016
A178: DSM265 | B178: DSM265 | D178: 7.80 | E178: 1000.00 | F178: 5000.00 | I178: =E178/D178 -> 128.21 | J178: 641.03 | M178: Cc1cc(Nc2ccc(cc2)S(F)(F)(F)(F)F)n2c(n1)nc(n2)C(F)(F)C | O178: Coteron 2011 and Phillips 2015 | P178: Coteron 2011 and Phillips 2015 | Q178: Coteron 2011 and Phillips 2015
A179: MMV018912 | B179: DSM265 | D179: 4.30 | E179: 5000.00 | G179: 5000.00 | I179: =E179/D179 -> 1162.79 | K179: =G179/D179 -> 1162.79 | M179: Cc1cc(Nc2ccc(cc2)S(F)(F)(F)(F)F)n2c(n1)nc(n2)C(F)(F)C | O179: This study | P179: This study | Q179: This study | R179: This study
A180: PM8 | B180: Ealapasamine C | D180: 63.00 | E180: 545.00 | F180: 889.00 | I180: =E180/D180 -> 8.65 | J180: =F180/D180 -> 14.11 | M180: CC1Cc2c(C(C)N1)c(OC)cc(O)c2c1cc(c(O)c2c1cc(C)cc2OC)c1cc(c2c(O)cc3CC(C)NC(C)c3c2OC)c2cc(C)cc(OC)c2c1O | O180: Moyo 2020 | P180: Moyo 2020 | Q180: Moyo 2020
A181: MMV1634492 | B181: Eberconazole | D181: 1482.62 | F181: 231.60 | J181: =F181/D181 -> 0.16 | M181: ClC1=C2C(=CC(=C1)Cl)CCC4=C(C2[N]3C=NC=C3)C=CC=C4 | O181: Reader 2021 | Q181: Reader 2021
A182: NCGC00181159 | B182: ECTEINASCIDIN | D182: 1.26 | F182: 316.23 | J182: =F182/D182 -> 251.19 | M182: CC(=O)Oc1c5c(c2OCOc2c1C)[C@@H]7COC(=O)[C@@]4(NCCc3cc(O)c(cc34)OC)CS[C@H]5[C@H]8[C@H]6c9c(C[C@H](N6C)[C@H](O)N78)cc(C)c(OC)c9O | O182: Eastman | Q182: Sun 2014
A183: NCGC00159337 | B183: EFAVIRENZ | D183: 5000.00 | F183: 3548.13 | J183: =F183/D183 -> 0.71 | M183: FC(F)(F)[C@@]3(C#CC1CC1)OC(=O)Nc2ccc(Cl)cc23 | O183: Eastman | Q183: Sun 2014
A184: NCGC00092329 | B184: Eliprodil | D184: 1584.89 | F184: 5000.00 | J184: =F184/D184 -> 3.15 | M184: OC(CN1CCC(CC1)Cc2ccc(F)cc2)c3ccc(Cl)cc3 | O184: Yuan 2009 | Q184: Sun 2014
A185: MMV034055 | B185: ELQ-300 | D185: 5.00 | E185: 5000.00 | G185: 5000.00 | I185: =E185/D185 -> 1000.00 | K185: =G185/D185 -> 1000.00 | M185: COc1cc2[nH]c(C)c(c(=O)c2cc1Cl)c1ccc(cc1)Oc1ccc(cc1)OC(F)(F)F | O185: This study | P185: This study | Q185: This study | R185: This study
A186: ELQ-300 | B186: ELQ-300 | D186: 2.20 | F186: 71.90 | J186: =F186/D186 -> 32.68 | M186: COc1cc2[nH]c(C)c(c(=O)c2cc1Cl)c1ccc(cc1)Oc1ccc(cc1)OC(F)(F)F | O186: Nilsen 2013 | Q186: Nilsen 2013
A187: NCGC00024379 | B187: EMETINE | D187: 251.19 | F187: 1258.93 | J187: 5.01 | M187: CC[C@H]1CN2CCC3=CC(=C(OC)C=C3[C@@H]2C[C@@H]1C[C@H]4NCCC5=CC(=C(OC)C=C45)OC)OC | O187: Eastman | Q187: Sun 2014
A188: NCGC00015400 | B188: Enoximone | D188: 5000.00 | F188: 3162.28 | J188: 0.63 | M188: CSC1=CC=C(C=C1)C(=O)\C2=C(/C)NC(=O)N2 | O188: Eastman | Q188: Sun 2014
A189: Epoxomycin | B189: Epoxomycin | D189: 8.00 | E189: 12.10 | F189: 0.42 | G189: 3.80 | I189: =E189/D189 -> 1.51 | J189: 0.05 | K189: =G189/D189 -> 0.48 | M189: CC[C@H](C)[C@@H](C(=O)N[C@@H]([C@@H](C)O)C(=O)N[C@@H](CC(C)C)C(=O)[C@]1(CO1)C)NC(=O)[C@H]([C@@H](C)CC)N(C)C(=O)C | O189: Lelievre 2012 | P189: D'Allesandro 2015 | Q189: Lelievre 2012 | R189: Bowman 2014
A190: NCGC00093857 | B190: Etazolate hydrochloride | D190: 5000.00 | F190: 3162.28 | J190: 0.63 | M190: Cl.C/C(C)=N\Nc2c(cnc1c2cnn1CC)C(=O)OCC | O190: Yuan 2009 | Q190: Sun 2014
A191: MMV687801 | B191: Ethambutol | D191: 5000.00 | F191: 3162.28 | J191: 0.63 | M191: CC[C@@H](CO)NCCN[C@@H](CC)CO | O191: Reader 2021 | Q191: Sun 2014
A192: NCGC00091387 | B192: Ethidium bromide | D192: 79.43 | F192: 1258.93 | J192: 15.85 | M192: [Br-].CC[n+]3c4cc(N)ccc4c1ccc(N)cc1c3c2ccccc2 | O192: Eastman | Q192: Sun 2014
A193: NCGC00015416 | B193: Ethylene glycol-bis(2-aminoethylether)-N,N,N',N'-tetraacetic acid | D193: 5000.00 | F193: 3548.13 | J193: 0.71 | M193: O=C(O)CN(CC(=O)O)CCOCCOCCN(CC(=O)O)CC(=O)O | O193: Eastman | Q193: Sun 2014
A194: MMV639951 | B194: Everolimus | D194: 2060.00 | F194: 5000.00 | J194: 2.43 | M194: O=C2N4C(C(=O)OC(C(CC1CC(OC)C(OCCO)CC1)C)CC(=O)C(\C=C(\C(O)C(OC)C(=O)C(C)CC(/C=C/C=C/C=C(/C(CC3OC(C2=O)(O)C(CC3)C)OC)C)C)C)C)CCCC4 | O194: Reader 2021 | Q194: Sun 2014
A195: MMV665916 | B195: F3407-3786 | D195: 72.60 | F195: 5000.00 | J195: 68.87 | M195: COc1ccccc1CNC(=O)CCN2C(=O)Nc3ccccc3C2=O | O195: Duffy 2013 | Q195: Sun 2014
A196: MMV982301 | B196: FAR797 | D196: 614.80 | E196: 682.90 | G196: 2965.00 | I196: =E196/D196 -> 1.11 | K196: =G196/D196 -> 4.82 | O196: This study | P196: This study | Q196: This study | R196: This study
A197: Fedratinib (SAR302503, TG101348) | B197: Fedratinib (SAR302503, TG101348) | D197: 66.90 | E197: 96.90 | F197: 1000.00 | I197: =E197/D197 -> 1.45 | J197: =F197/D197 -> 14.95 | M197: CC(C)(C)NS(C1=CC=CC(NC2=NC(NC3=CC=C(OCCN4CCCC4)C=C3)=NC=C2C)=C1)(=O)=O | O197: vanheer 2020 | P197: vanheer 2020 | Q197: vanheer 2020
A198: MMV003143 | B198: Fenbendazole | D198: 5000.00 | F198: 2818.38 | J198: =F198/D198 -> 0.56 | M198: S(C2=CC1=C([NH]C(=N1)NC(=O)OC)C=C2)C3=CC=CC=C3 | O198: Reader 2021 | Q198: Sun 2014
A199: NCGC00015437 | B199: Fenofibrate | D199: 5000.00 | F199: 2818.38 | J199: =F199/D199 -> 0.56 | M199: O=C(c1ccc(Cl)cc1)c2ccc(OC(C)(C)C(=O)OC(C)C)cc2 | O199: Eastman | Q199: Sun 2014
A200: MMV000056 | B200: Ferroquine (SSR97193) | D200: 9.50 | E200: 29.10 | G200: 5000.00 | I200: =E200/D200 -> 3.06 | K200: =G200/D200 -> 526.32 | M200: =VLOOKUP(A200,[1]Sheet1!$A:$O,15,FALSE) -> CN(CC1=C(CNc2ccnc3c2ccc(c3)Cl)C=C(C1)[Fe]C1=CC=CC1)C | O200: This study | P200: This study | Q200: This study | R200: This study
A201: NCGC00167477 | B201: FIDARESTAT | D201: 5000.00 | F201: 1000.00 | J201: =F201/D201 -> 0.20 | M201: NC(=O)[C@@H]2C[C@]1(NC(=O)NC1=O)c3cc(F)ccc3O2 | O201: Eastman | Q201: Sun 2014
... 1814 more rows
